Workbook

Sheet Inicio_ComMono
A25: Descargue la versión Kindle
J34: Miguel Cervantes Jiménez

Sheet ComMono_maxben_cp_2g (hidden)
A1: COMPETENCIA MONOPÓLISTICA
A2: Equilibrio a corto plazo
B5: Parámetros función de costos
B6: b (y2) | C6: 0.30000
B7: c (y) | C7: -3.00000
B8: d | C8: 400.0
B9: b0 | C9: 100.0
B10: b1 | C10: -0.5
B11: b0/b1 | C11: =C9/C10*-1 -> 200.0
B12: 1/b1 | C12: =1/C10 -> -2.0
B13: Inserte los datos correspondientes
B15: Precio de equilibrio | C15: =Oculto_ComMono!X12 -> 67.8
B16: Cantidad de equilibrio | C16: =Oculto_ComMono!X13 -> 64.4
B17: Ingreso marginal | C17: =Oculto_ComMono!X14 -> 35.6
B18: Costo marginal | C18: =Oculto_ComMono!X15 -> 35.6
B19: Costo medio | C19: =Oculto_ComMono!X16 -> 22.5
B20: Costo total | C20: =Oculto_ComMono!X17 -> 1,450.1
B21: Ingreso total | C21: =Oculto_ComMono!X18 -> 4,365.4
B22: Beneficio | C22: =Oculto_ComMono!X19 -> 2,915.3
B23: Elasticidad precio | C23: =Oculto_ComMono!X20 -> -2.1
B25: y1 Empresa | C25: =Oculto_ComMono!X22 -> 64.4
B26: Num. enpresas | C26: 10.0
B27: Y1 industria | C27: =Oculto_ComMono!X24 -> 643.8
B32: Títulos
B33: Resultados
B34: Insertar datos
B35: Valores de equilibrio

Sheet ComMono_maxben_Lp_3g (hidden)
A1: COMPETENCIA MONOPOLISTICA
A2: Equilibrio a largo plazo
B5: Parámetros función costos y demanda
B6: a (y3) | C6: 0.00010 | D6: =IF(C6<>Oculto_ComMono!BX4,1,0) -> 0
B7: b (y2) | C7: 0.05000 | D7: =IF(C7<>Oculto_ComMono!BX5,1,0) -> 0
B8: c (y) | C8: 0.1 | D8: =IF(C8<>Oculto_ComMono!BX6,1,0) -> 0 | E8: Parámetros función demanda largo plazo
B9: d | C9: 100,000.0 | D9: =IF(C9<>Oculto_ComMono!BX7,1,0) -> 0
B10: b0 | C10: 1,000.0 | E10: b0 | F10: =F12*F11*-1 -> 486.1
B11: b1 | C11: -0.5 | E11: b1 | F11: =C11 -> -0.50
B12: b0/b1 | C12: =C10/C11*-1 -> 2,000.0 | D12: =IF(C12<>Oculto_ComMono!BX8,1,0) -> 1 | E12: b0/b1 | F12: =+Oculto_ComMono!BW35 -> 972.1
B13: 1/b1 | C13: =1/C11 -> -2.0 | D13: =IF(C13<>Oculto_ComMono!BX9,1,0) -> 0 | E13: 1/b1 | F13: =+Oculto_ComMono!BW36 -> -2.0
B14: Inserte los datos correspondientes
B15: Equilibrio de CORTO PLAZO | E15: Equilibrio de LARGO PLAZO
B16: Precio de equilibrio | C16: =+Oculto_ComMono!BW13 -> 623.0 | E16: Precio de equilibrio | F16: =+Oculto_ComMono!BW40 -> 286.9
B17: Cantidad de equilibrio | C17: =+Oculto_ComMono!BW14 -> 754.0 | E17: Cantidad de equilibrio | F17: =+Oculto_ComMono!BW41 -> 398.4
B18: Ingreso marginal | C18: =+Oculto_ComMono!BW15 -> 246.0 | E18: Ingreso marginal | F18: =+Oculto_ComMono!BW42 -> 87.7
B19: Costo marginal | C19: =+Oculto_ComMono!BW16 -> 246.0 | E19: Costo marginal | F19: =+Oculto_ComMono!BW43 -> 87.5
B20: Costo medio | C20: =+Oculto_ComMono!BW17 -> 227.2 | E20: Costo medio | F20: =+Oculto_ComMono!BW44 -> 286.9
B21: Costo total | C21: =+Oculto_ComMono!BW18 -> 171,334.8 | E21: Costo total | F21: =+Oculto_ComMono!BW45 -> 114,283.8
B22: Ingreso total | C22: =+Oculto_ComMono!BW19 -> 469,739.7 | E22: Ingreso total | F22: =+Oculto_ComMono!BW46 -> 114,283.8
B23: Beneficio | C23: =+Oculto_ComMono!BW20 -> 298,404.9 | E23: Beneficio | F23: =+Oculto_ComMono!BW47 -> 0.0
B24: Elasticidad precio | C24: =+Oculto_ComMono!BW21 -> -1.7 | E24: Elasticidad precio | F24: =+Oculto_ComMono!BW48 -> -1.4
B26: Producción empresa | C26: =+Oculto_ComMono!BW25 -> 754.0 | E26: Producción empresa | F26: =+Oculto_ComMono!BW50 -> 398.4
B27: Número de empresas | C27: 3.0 | D27: =IF(C27<>Oculto_ComMono!BW27,1,0) -> 0 | E27: Número de empresas | F27: =+Oculto_ComMono!BW51 -> 10.7
B28: Producción industria | C28: =+Oculto_ComMono!BW28 -> 2,262.0 | D28: =+SUM(D5:D27) -> 1 | E28: Producción industria | F28: =+Oculto_ComMono!BW52 -> 4,278.9
B35: Títulos
B36: Resultados
B37: Insertar Datos
B38: Valores de equilibrio

Sheet ComMono_maxben_cp_3g (hidden)
A1: COMPETENCIA MONOPÓLISTICA
A3: Equilibrio a corto plazo
B5: Parámetros función de costos
B6: a (y3) | C6: 0.00030
B7: b (y2) | C7: -0.05000
B8: c (y) | C8: 0.06000
B9: d | C9: 70,000.0
B10: b0 | C10: 1,500.0
B11: b1 | C11: -0.50
B12: b0/b1 | C12: =C10/C11*-1 -> 3,000.0
B13: 1/b1 | C13: =1/C11 -> -2.0
B14: Inserte los datos correspondientes
B16: Precio de equilibrio | C16: =Oculto_ComMono!B12 -> 1,057.8
B17: Cantidad de equilibrio | C17: =Oculto_ComMono!B13 -> 884.4
B18: Ingreso marginal | C18: =Oculto_ComMono!B14 -> 615.6
B19: Costo marginal | C19: =Oculto_ComMono!B15 -> 615.6
B20: Costo medio | C20: =Oculto_ComMono!B16 -> 269.6
B21: Costo total | C21: =Oculto_ComMono!B17 -> 238,476.6
B22: Ingreso total | C22: =Oculto_ComMono!B18 -> 935,526.5
B23: Beneficio | C23: =Oculto_ComMono!B19 -> 697,049.8
B24: Elasticidad precio | C24: =+Oculto_ComMono!B20 -> -2.4
B30: Títulos
B31: Resultados
B32: Insertar datos
B33: Valores de equilibrio

Sheet Oculto_ComMono (hidden)
A1: SISTEMA DE EQUILIBRIO DE CORTO PLAZO CON COSTOS DE TERCER GRADO | L1: Demanda | N1: Ingreso Marginal | W1: SISTEMA DE EQUILIBRIO DE CORTO PLAZO CON COSTOS DE SEGUNDO GRADO | AH1: DEMANDA ORIGINAL | AJ1: Ingreso Marginal | AT1: SISTEMA DE EQUILIBRIO DE LARGO PLAZO CON COSTOS DE SEGUNDO GRADO | BE1: DEMANDA ORIGINAL | BG1: Ingreso Marginal | BI1: DEMANDA MODIFICADA | BV1: SISTEMA DE EQUILIBRIO DE LARGO PLAZO CON COSTOS DE TERCER GRADO | CG1: DEMANDA ORIGINAL | CI1: Ingreso Marginal | CK1: DEMANDA MODIFICADA
A2: FUNCIÒN DE COSTOS | D2: Ponderador | E2: COSTO TOTAL | F2: COSTO MEDIO | H2: COSTO FIJO MEDIO | I2: COSTO VARIABLE MEDIO | J2: COSTO MARGINAL | L2: P | M2: Y | N2: P | O2: Y | P2: LineP(x) | R2: LineP(y) | T2: LineCU | Z2: Ponderador | AA2: COSTO TOTAL | AB2: COSTO MEDIO | AC2: COSTO TOTAL | AD2: COSTO FIJO MEDIO | AE2: COSTO VARIABLE MEDIO | AF2: COSTO MARGINAL | AH2: P | AI2: Y | AJ2: P | AK2: Y | AL2: LineP(x) | AN2: LineP(y) | AP2: LineCU | AW2: Ponderador | AX2: COSTO TOTAL | AY2: COSTO MEDIO | AZ2: COSTO TOTAL | BA2: COSTO FIJO MEDIO | BB2: COSTO VARIABLE MEDIO | BC2: COSTO MARGINAL | BE2: P | BF2: Y | BG2: P | BH2: Y | BI2: P | BJ2: Y | BK2: LineP(x) | BM2: LineP(y) | BO2: LineCU | BY2: Ponderador | BZ2: COSTO TOTAL | CA2: COSTO MEDIO | CC2: COSTO FIJO MEDIO | CD2: COSTO VARIABLE MEDIO | CE2: COSTO MARGINAL | CG2: P | CH2: Y | CI2: P | CJ2: Y | CK2: P | CL2: Y | CM2: LineP(x) | CO2: LineP(y) | CQ2: LineCU | CR2: LineP(x) LP | CS2: LineP(y) LP
D3: 0.00 | E3: =$B$7+($B$6*M3)+($B$5*(M3^2))+($B$4*(M3^3)) -> 70,000.00 | J3: =IF((3*$B$4*(M3^2))+(2*$B$5*(M3^1))+($B$6)<$B$10,(3*$B$4*(M3^2))+(2*$B$5*(M3^1))+($B$6),J2) -> 0.06 | L3: =(($B$8/$B$9)*-1)+((1/$B$9)*M3) -> 1,500.00 | M3: =$B$8*D3 -> 0.00 | N3: =L3 -> 1,500.00 | O3: =M3/2 -> 0.00 | P3: =$B$13*D3 -> 0.00 | Q3: =$B$12 -> 1,057.79 | R3: =$B$12*D3 -> 0.00 | S3: =$B$13 -> 884.41 | T3: =$B$16 -> 269.6 | W3: PARÁMETROS ORIGINALES | X3: 0 | Z3: 0.00 | AA3: =$X$6+($X$5*AI3)+($X$4*(AI3^2)) -> 400.00 | AF3: =IF((2*$X$4*(AI3^1))+($X$5)<$X$9,((2*$X$4*(AI3^1))+($X$5)),AF2) -> -3.00 | AH3: =(($X$7/$X$8)*-1)+((1/$X$8)*AI3) -> 100.00 | AI3: =$X$7*Z3 -> 0.00 | AJ3: =AH3 -> 100.00 | AK3: =AI3/2 -> 0.00 | AL3: =$X$13*Z3 -> 0.00 | AM3: =$X$12 -> 67.81 | AN3: =$X$12*Z3 -> 0.00 | AO3: =$X$13 -> 64.38 | AP3: =$X$16 -> 22.5 | AT3: PARÁMETROS ORIGINALES | AW3: 0.00 | AX3: =$AU$6+($AU$5*BF3)+($AU$4*(BF3^2)) -> 200.00 | BC3: =IF((2*$AU$4*(BF3^1))+($AU$5)<$AU$9,((2*$AU$4*(BF3^1))+($AU$5)),BC2) -> -4.00 | BE3: =(($AU$7/$AU$8)*-1)+((1/$AU$8)*BF3) -> 40.00 | BF3: =$AU$7*AW3 -> 0.00 | BG3: =BE3 -> 40.00 | BH3: =BF3/2 -> 0.00 | BI3: =IF($AU$50=1,$AU$33*AW3,"") ->  | BJ3: =IF($AU$50=1,$AU$31+($AU$32*BI3),"") ->  | BK3: =$AU$13*AW3 -> 0.00 | BL3: =$AU$12 -> 21.67 | BM3: =$AU$12*AW3 -> 0.00 | BN3: =$AU$13 -> 36.67 | BO3: =$AU$16 -> 5.1 | BV3: PARÁMETROS ORIGINALES | BY3: 0.00 | BZ3: =$BW$7+($BW$6*CH3)+($BW$5*(CH3^2))+($BW$4*(CH3^3)) -> 100,000.00 | CE3: =IF((3*$BW$4*(CH3^2))+(2*$BW$5*(CH3^1))+($BW$6)<$BW$10,(3*$BW$4*(CH3^2))+(2*$BW$5*(CH3^1))+($BW$6),CE2) -> 0.06 | CG3: =((-$BW$8/$BW$9))+(CH3/$BW$9) -> 1,000.00 | CH3: =$BW$8*BY3 -> 0.00 | CI3: =CG3 -> 1,000.00 | CJ3: =CH3/2 -> 0.00 | CK3: =IF($BW$53=1,$BW$37*BY3,0) -> 0.00 | CL3: =IF($BW$53=1,$BW$35+($BW$36*CK3),0) -> 0.00 | CM3: =+$BW$25*BY3 -> 0.00 | CN3: =+$BW$13 -> 623.00 | CO3: =+$BW$13*BY3 -> 0.00 | CP3: =+$BW$25 -> 753.99 | CQ3: =+$BW$40 -> 286.9 | CR3: =+$BW$59*BY3 -> 0.00 | CS3: =+$BW$58*BY3 -> 0.00 | CT3: =+$BW$59 -> 0.00
A4: a | B4: =ComMono_maxben_cp_3g!C6 -> 0.0 | C4: Y3 | D4: 0.05 | E4: 69,896.50 | F4: =E4/M4 -> 465.98 | G4: =IF(F4=F3,G3,M4) -> 150.00 | H4: =$B$7/M4 -> 466.67 | I4: =F4-H4 -> -0.69 | J4: =IF((3*$B$4*(M4^2))+(2*$B$5*(M4^1))+($B$6)<$B$10,(3*$B$4*(M4^2))+(2*$B$5*(M4^1))+($B$6),J3) -> 5.31 | K4: =IF(J4=J3,K3,M4) -> 150.00 | L4: 1,425.00 | M4: 150.00 | N4: =L4 -> 1,425.00 | O4: =M4/2 -> 75.00 | P4: 44.22 | Q4: 1,057.79 | R4: 52.89 | S4: 884.41 | T4: =$B$16 -> 269.6 | W4: a | X4: =ComMono_maxben_cp_2g!C6 -> 0.30 | Z4: 0.05 | AA4: 400.00 | AB4: =AA4/AI4 -> 40.00 | AC4: =IF(AB4=AB3,AC3,AI4) -> 10.00 | AD4: =$X$6/AI4 -> 40.00 | AE4: =AB4-AD4 -> 0.00 | AF4: 3.00 | AG4: =IF(AF4=AF3,AG3,AI4) -> 10.00 | AH4: 95.00 | AI4: 10.00 | AJ4: =AH4 -> 95.00 | AK4: =AI4/2 -> 5.00 | AL4: 3.22 | AM4: 67.81 | AN4: 3.39 | AO4: 64.38 | AP4: 22.5 | AT4: a | AU4: =ComMono_maxben_Lp_2g!C6 -> 0.10 | AW4: 0.05 | AX4: =$AU$6+($AU$5*BF4)+($AU$4*(BF4^2)) -> 185.60 | AY4: =AX4/BF4 -> 46.40 | AZ4: =IF(AY4=AY3,AZ3,BF4) -> 4.00 | BA4: =$AU$6/BF4 -> 50.00 | BB4: =AY4-BA4 -> -3.60 | BC4: =IF((2*$AU$4*(BF4^1))+($AU$5)<$AU$9,((2*$AU$4*(BF4^1))+($AU$5)),BC3) -> -3.20 | BD4: =IF(BC4=BC3,BD3,BF4) -> 4.00 | BE4: =(($AU$7/$AU$8)*-1)+((1/$AU$8)*BF4) -> 38.00 | BF4: =$AU$7*AW4 -> 4.00 | BG4: =BE4 -> 38.00 | BH4: =BF4/2 -> 2.00 | BI4: =IF($AU$50=1,$AU$33*AW4,"") ->  | BJ4: =IF($AU$50=1,$AU$31+($AU$32*BI4),"") ->  | BK4: =$AU$13*AW4 -> 1.83 | BL4: 21.67 | BM4: =$AU$12*AW4 -> 1.08 | BN4: 36.67 | BO4: 5.1 | BV4: 0 | BW4: =+ComMono_maxben_Lp_3g!C6 -> 0.00 | BX4: 0.00 | BY4: 0.05 | BZ4: =$BW$7+($BW$6*CH4)+($BW$5*(CH4^2))+($BW$4*(CH4^3)) -> 100,606.00 | CA4: =BZ4/CH4 -> 1,006.06 | CB4: =IF(CA4=CA3,CB3,CH4) -> 100.00 | CC4: =$BW$7/CH4 -> 1,000.00 | CD4: =CA4-CC4 -> 6.06 | CE4: =IF((3*$BW$4*(CH4^2))+(2*$BW$5*(CH4^1))+($BW$6)<$BW$10,(3*$BW$4*(CH4^2))+(2*$BW$5*(CH4^1))+($BW$6),CE3) -> 13.06 | CF4: =IF(CE4=CE3,CF3,CH4) -> 100.00 | CG4: =((-$BW$8/$BW$9))+(CH4/$BW$9) -> 950.00 | CH4: =$BW$8*BY4 -> 100.00 | CI4: =CG4 -> 950.00 | CJ4: =CH4/2 -> 50.00 | CK4: =IF($BW$53=1,$BW$37*BY4,0) -> 0.00 | CL4: =IF($BW$53=1,$BW$35+($BW$36*CK4),0) -> 0.00 | CM4: =+$BW$25*BY4 -> 37.70 | CN4: =+$BW$13 -> 623.00 | CO4: =+$BW$13*BY4 -> 31.15 | CP4: =+$BW$25 -> 753.99 | CQ4: =+$BW$40 -> 286.9 | CR4: =+$BW$59*BY4 -> 0.00 | CS4: =+$BW$58*BY4 -> 0.00 | CT4: =+$BW$59 -> 0.00
A5: b | B5: =ComMono_maxben_cp_3g!C7 -> -0.1 | C5: Y2 | D5: 0.10 | E5: 73,618.00 | F5: 245.39 | G5: =IF(F5=F4,G4,M5) -> 300.00 | H5: 233.33 | I5: 12.06 | J5: 51.06 | K5: =IF(J5=J4,K4,M5) -> 300.00 | L5: 1,350.00 | M5: 300.00 | N5: 1,350.00 | O5: 150.00 | P5: 88.44 | Q5: 1,057.79 | R5: 105.78 | S5: 884.41 | T5: 269.6 | W5: b | X5: =ComMono_maxben_cp_2g!C7 -> -3.00 | Z5: 0.10 | AA5: 460.00 | AB5: =AA5/AI5 -> 23.00 | AC5: =IF(AB5=AB4,AC4,AI5) -> 20.00 | AD5: 20.00 | AE5: 3.00 | AF5: 9.00 | AG5: =IF(AF5=AF4,AG4,AI5) -> 20.00 | AH5: 90.00 | AI5: 20.00 | AJ5: 90.00 | AK5: 10.00 | AL5: 6.44 | AM5: 67.81 | AN5: 6.78 | AO5: 64.38 | AP5: 22.5 | AT5: b | AU5: =ComMono_maxben_Lp_2g!C7 -> -4.00 | AW5: 0.10 | AX5: 174.40 | AY5: =AX5/BF5 -> 21.80 | AZ5: =IF(AY5=AY4,AZ4,BF5) -> 8.00 | BA5: =$AU$6/BF5 -> 25.00 | BB5: -3.20 | BC5: -2.40 | BD5: =IF(BC5=BC4,BD4,BF5) -> 8.00 | BE5: 36.00 | BF5: 8.00 | BG5: 36.00 | BH5: 4.00 | BK5: 3.67 | BL5: 21.67 | BM5: 2.17 | BN5: 36.67 | BO5: 5.1 | BV5: 0 | BW5: =+ComMono_maxben_Lp_3g!C7 -> 0.05 | BX5: 0.05 | BY5: 0.10 | BZ5: 102,812.00 | CA5: =BZ5/CH5 -> 514.06 | CB5: =IF(CA5=CA4,CB4,CH5) -> 200.00 | CC5: =$BW$7/CH5 -> 500.00 | CD5: 14.06 | CE5: 32.06 | CF5: =IF(CE5=CE4,CF4,CH5) -> 200.00 | CG5: 900.00 | CH5: 200.00 | CI5: 900.00 | CJ5: 100.00 | CK5: 0.00 | CL5: 0.00 | CM5: 75.40 | CN5: 623.00 | CO5: 62.30 | CP5: 753.99 | CQ5: 286.9 | CR5: 0.00 | CS5: 0.00 | CT5: 0.00
A6: c | B6: =ComMono_maxben_cp_3g!C8 -> 0.1 | C6: Y | D6: 0.15 | E6: 87,239.50 | F6: 193.87 | G6: 450.00 | H6: 155.56 | I6: 38.31 | J6: 137.31 | K6: 450.00 | L6: 1,275.00 | M6: 450.00 | N6: 1,275.00 | O6: 225.00 | P6: 132.66 | Q6: 1,057.79 | R6: 158.67 | S6: 884.41 | T6: 269.6 | W6: c | X6: =ComMono_maxben_cp_2g!C8 -> 400.00 | Z6: 0.15 | AA6: 580.00 | AB6: =AA6/AI6 -> 19.33 | AC6: 30.00 | AD6: 13.33 | AE6: 6.00 | AF6: 15.00 | AG6: 30.00 | AH6: 85.00 | AI6: 30.00 | AJ6: 85.00 | AK6: 15.00 | AL6: 9.66 | AM6: 67.81 | AN6: 10.17 | AO6: 64.38 | AP6: 22.5 | AT6: c | AU6: =ComMono_maxben_Lp_2g!C8 -> 200.00 | AW6: 0.15 | AX6: 166.40 | AY6: =AX6/BF6 -> 13.87 | AZ6: 12.00 | BA6: 16.67 | BB6: -2.80 | BC6: -1.60 | BD6: 12.00 | BE6: 34.00 | BF6: 12.00 | BG6: 34.00 | BH6: 6.00 | BK6: 5.50 | BL6: 21.67 | BM6: 3.25 | BN6: 36.67 | BO6: 5.1 | BV6: 0 | BW6: =+ComMono_maxben_Lp_3g!C8 -> 0.06 | BX6: 0.06 | BY6: 0.15 | BZ6: 107,218.00 | CA6: =BZ6/CH6 -> 357.39 | CB6: 300.00 | CC6: 333.33 | CD6: 24.06 | CE6: 57.06 | CF6: 300.00 | CG6: 850.00 | CH6: 300.00 | CI6: 850.00 | CJ6: 150.00 | CK6: 0.00 | CL6: 0.00 | CM6: 113.10 | CN6: 623.00 | CO6: 93.45 | CP6: 753.99 | CQ6: 286.9 | CR6: 0.00 | CS6: 0.00 | CT6: 0.00
A7: d | B7: =ComMono_maxben_cp_3g!C9 -> 70,000.00 | C7: 0 | D7: 0.20 | E7: 116,836.00 | F7: 194.73 | G7: 600.00 | H7: 116.67 | I7: 78.06 | J7: 264.06 | K7: 600.00 | L7: 1,200.00 | M7: 600.00 | N7: 1,200.00 | O7: 300.00 | P7: 176.88 | Q7: 1,057.79 | R7: 211.56 | S7: 884.41 | T7: 269.6 | W7: b0 | X7: =ComMono_maxben_cp_2g!C11 -> 200.00 | Z7: 0.20 | AA7: 760.00 | AB7: =AA7/AI7 -> 19.00 | AC7: 40.00 | AD7: 10.00 | AE7: 9.00 | AF7: 21.00 | AG7: 40.00 | AH7: 80.00 | AI7: 40.00 | AJ7: 80.00 | AK7: 20.00 | AL7: 12.88 | AM7: 67.81 | AN7: 13.56 | AO7: 64.38 | AP7: 22.5 | AT7: b0 | AU7: =ComMono_maxben_Lp_2g!C11 -> 80.00 | AW7: 0.20 | AX7: 161.60 | AY7: =AX7/BF7 -> 10.10 | AZ7: 16.00 | BA7: 12.50 | BB7: -2.40 | BC7: -0.80 | BD7: 16.00 | BE7: 32.00 | BF7: 16.00 | BG7: 32.00 | BH7: 8.00 | BK7: 7.33 | BL7: 21.67 | BM7: 4.33 | BN7: 36.67 | BO7: 5.1 | BV7: 0 | BW7: =+ComMono_maxben_Lp_3g!C9 -> 100,000.00 | BX7: 100,000.00 | BY7: 0.20 | BZ7: 114,424.00 | CA7: =BZ7/CH7 -> 286.06 | CB7: 400.00 | CC7: 250.00 | CD7: 36.06 | CE7: 88.06 | CF7: 400.00 | CG7: 800.00 | CH7: 400.00 | CI7: 800.00 | CJ7: 200.00 | CK7: 0.00 | CL7: 0.00 | CM7: 150.80 | CN7: 623.00 | CO7: 124.60 | CP7: 753.99 | CQ7: 286.9 | CR7: 0.00 | CS7: 0.00 | CT7: 0.00
A8: b0 | B8: =ComMono_maxben_cp_3g!C12 -> 3,000.0 | D8: 0.25 | E8: 168,482.50 | F8: 224.64 | G8: 750.00 | H8: 93.33 | I8: 131.31 | J8: 431.31 | K8: 750.00 | L8: 1,125.00 | M8: 750.00 | N8: 1,125.00 | O8: 375.00 | P8: 221.10 | Q8: 1,057.79 | R8: 264.45 | S8: 884.41 | T8: 269.6 | W8: b1 | X8: =ComMono_maxben_cp_2g!C12 -> -2.00 | Z8: 0.25 | AA8: 1,000.00 | AB8: =AA8/AI8 -> 20.00 | AC8: 50.00 | AD8: 8.00 | AE8: 12.00 | AF8: 27.00 | AG8: 50.00 | AH8: 75.00 | AI8: 50.00 | AJ8: 75.00 | AK8: 25.00 | AL8: 16.09 | AM8: 67.81 | AN8: 16.95 | AO8: 64.38 | AP8: 22.5 | AT8: b1 | AU8: =ComMono_maxben_Lp_2g!C12 -> -2.00 | AW8: 0.25 | AX8: 160.00 | AY8: =AX8/BF8 -> 8.00 | AZ8: 20.00 | BA8: 10.00 | BB8: -2.00 | BC8: 0.00 | BD8: 20.00 | BE8: 30.00 | BF8: 20.00 | BG8: 30.00 | BH8: 10.00 | BK8: 9.17 | BL8: 21.67 | BM8: 5.42 | BN8: 36.67 | BO8: 5.1 | BV8: 0 | BW8: =+ComMono_maxben_Lp_3g!C12 -> 2,000.00 | BX8: 3,000.00 | BY8: 0.25 | BZ8: 125,030.00 | CA8: =IF((BZ8/CH8)<$B$10,(BZ8/CH8),CA7) -> 250.06 | CB8: 500.00 | CC8: 200.00 | CD8: 50.06 | CE8: 125.06 | CF8: 500.00 | CG8: 750.00 | CH8: 500.00 | CI8: 750.00 | CJ8: 250.00 | CK8: 0.00 | CL8: 0.00 | CM8: 188.50 | CN8: 623.00 | CO8: 155.75 | CP8: 753.99 | CQ8: 286.9 | CR8: 0.00 | CS8: 0.00 | CT8: 0.00
A9: b1 | B9: =ComMono_maxben_cp_3g!C13 -> -2.0 | D9: 0.30 | E9: 248,254.00 | F9: 275.84 | G9: 900.00 | H9: 77.78 | I9: 198.06 | J9: 639.06 | K9: 900.00 | L9: 1,050.00 | M9: 900.00 | N9: 1,050.00 | O9: 450.00 | P9: 265.32 | Q9: 1,057.79 | R9: 317.34 | S9: 884.41 | T9: 269.6 | W9: b0/b1 | X9: =X7/X8*-1 -> 100.00 | Z9: 0.30 | AA9: 1,300.00 | AB9: =IF((AA9/AI9)<$B$10,(AA9/AI9),AB8) -> 21.67 | AC9: 60.00 | AD9: 6.67 | AE9: 15.00 | AF9: 33.00 | AG9: 60.00 | AH9: 70.00 | AI9: 60.00 | AJ9: 70.00 | AK9: 30.00 | AL9: 19.31 | AM9: 67.81 | AN9: 20.34 | AO9: 64.38 | AP9: 22.5 | AT9: b0/b1 | AU9: =-AU7/AU8 -> 40.00 | AW9: 0.30 | AX9: 161.60 | AY9: =IF((AX9/BF9)<$B$10,(AX9/BF9),AY8) -> 6.73 | AZ9: 24.00 | BA9: 8.33 | BB9: -1.60 | BC9: 0.80 | BD9: 24.00 | BE9: 28.00 | BF9: 24.00 | BG9: 28.00 | BH9: 12.00 | BK9: 11.00 | BL9: 21.67 | BM9: 6.50 | BN9: 36.67 | BO9: 5.1 | BV9: 0 | BW9: =+ComMono_maxben_Lp_3g!C13 -> -2.00 | BX9: -2.00 | BY9: 0.30 | BZ9: 139,636.00 | CA9: 232.73 | CB9: 600.00 | CC9: 166.67 | CD9: 66.06 | CE9: 168.06 | CF9: 600.00 | CG9: 700.00 | CH9: 600.00 | CI9: 700.00 | CJ9: 300.00 | CK9: 0.00 | CL9: 0.00 | CM9: 226.20 | CN9: 623.00 | CO9: 186.90 | CP9: 753.99 | CQ9: 286.9 | CR9: 0.00 | CS9: 0.00 | CT9: 0.00
A10: b0/b1 | B10: =-B8/B9 -> 1,500.0 | D10: 0.35 | E10: 362,225.50 | F10: =IF((E10/M10)<$B$10,(E10/M10),F9) -> 344.98 | G10: 1,050.00 | H10: 66.67 | I10: 278.31 | J10: 887.31 | K10: 1,050.00 | L10: 975.00 | M10: 1,050.00 | N10: 975.00 | O10: 525.00 | P10: 309.54 | Q10: 1,057.79 | R10: 370.23 | S10: 884.41 | T10: 269.6 | Z10: 0.35 | AA10: 1,660.00 | AB10: 23.71 | AC10: 70.00 | AD10: 5.71 | AE10: 18.00 | AF10: 39.00 | AG10: 70.00 | AH10: 65.00 | AI10: 70.00 | AJ10: 65.00 | AK10: 35.00 | AL10: 22.53 | AM10: 67.81 | AN10: 23.73 | AO10: 64.38 | AP10: 22.5 | AW10: 0.35 | AX10: 166.40 | AY10: 5.94 | AZ10: 28.00 | BA10: 7.14 | BB10: -1.20 | BC10: 1.60 | BD10: 28.00 | BE10: 26.00 | BF10: 28.00 | BG10: 26.00 | BH10: 14.00 | BK10: 12.83 | BL10: 21.67 | BM10: 7.58 | BN10: 36.67 | BO10: 5.1 | BV10: 0 | BW10: =-BW8/BW9 -> 1,000.00 | BX10: 1,500.00 | BY10: 0.35 | BZ10: 158,842.00 | CA10: 226.92 | CB10: 700.00 | CC10: 142.86 | CD10: 84.06 | CE10: 217.06 | CF10: 700.00 | CG10: 650.00 | CH10: 700.00 | CI10: 650.00 | CJ10: 350.00 | CK10: 0.00 | CL10: 0.00 | CM10: 263.90 | CN10: 623.00 | CO10: 218.05 | CP10: 753.99 | CQ10: 286.9 | CR10: 0.00 | CS10: 0.00 | CT10: 0.00
D11: 0.40 | E11: 516,472.00 | F11: 430.39 | G11: 1,200.00 | H11: 58.33 | I11: 372.06 | J11: 1,176.06 | K11: 1,200.00 | L11: 900.00 | M11: 1,200.00 | N11: 900.00 | O11: 600.00 | P11: 353.77 | Q11: 1,057.79 | R11: 423.12 | S11: 884.41 | T11: 269.6 | W11: EQUILIBRIO INICIAL | Z11: 0.40 | AA11: 2,080.00 | AB11: 26.00 | AC11: 80.00 | AD11: 5.00 | AE11: 21.00 | AF11: 45.00 | AG11: 80.00 | AH11: 60.00 | AI11: 80.00 | AJ11: 60.00 | AK11: 40.00 | AL11: 25.75 | AM11: 67.81 | AN11: 27.13 | AO11: 64.38 | AP11: 22.5 | AT11: EQUILIBRIO DE CORTO PLAZO | AW11: 0.40 | AX11: 174.40 | AY11: 5.45 | AZ11: 32.00 | BA11: 6.25 | BB11: -0.80 | BC11: 2.40 | BD11: 32.00 | BE11: 24.00 | BF11: 32.00 | BG11: 24.00 | BH11: 16.00 | BK11: 14.67 | BL11: 21.67 | BM11: 8.67 | BN11: 36.67 | BO11: 5.1 | BY11: 0.40 | BZ11: 183,248.00 | CA11: 229.06 | CB11: 800.00 | CC11: 125.00 | CD11: 104.06 | CE11: 272.06 | CF11: 800.00 | CG11: 600.00 | CH11: 800.00 | CI11: 600.00 | CJ11: 400.00 | CK11: 0.00 | CL11: 0.00 | CM11: 301.60 | CN11: 623.00 | CO11: 249.20 | CP11: 753.99 | CQ11: 286.9 | CR11: 0.00 | CS11: 0.00 | CT11: 0.00
A12: Precio de Equilibrio | B12: =((-B8/B9))+((B37/B9)) -> 1,057.8 | D12: 0.45 | E12: 717,068.50 | F12: 531.16 | G12: 1,350.00 | H12: 51.85 | I12: 479.31 | J12: 1,176.06 | K12: 1,200.00 | L12: 825.00 | M12: 1,350.00 | N12: 825.00 | O12: 675.00 | P12: 397.99 | Q12: 1,057.79 | R12: 476.01 | S12: 884.41 | T12: 269.6 | W12: Precio de Equilibrio | X12: =((X7/X8)*-1)+((1/X8)*X22) -> 67.8 | Z12: 0.45 | AA12: 2,560.00 | AB12: 28.44 | AC12: 90.00 | AD12: 4.44 | AE12: 24.00 | AF12: 51.00 | AG12: 90.00 | AH12: 55.00 | AI12: 90.00 | AJ12: 55.00 | AK12: 45.00 | AL12: 28.97 | AM12: 67.81 | AN12: 30.52 | AO12: 64.38 | AP12: 22.5 | AT12: Precio de Equilibrio | AU12: =((AU7/AU8)*-1)+((1/AU8)*AU22) -> 21.7 | AW12: 0.45 | AX12: 185.60 | AY12: 5.16 | AZ12: 36.00 | BA12: 5.56 | BB12: -0.40 | BC12: 3.20 | BD12: 36.00 | BE12: 22.00 | BF12: 36.00 | BG12: 22.00 | BH12: 18.00 | BK12: 16.50 | BL12: 21.67 | BM12: 9.75 | BN12: 36.67 | BO12: 5.1 | BV12: EQUILIBRIO DE CORTO PLAZO | BY12: 0.45 | BZ12: 213,454.00 | CA12: 237.17 | CB12: 900.00 | CC12: 111.11 | CD12: 126.06 | CE12: 333.06 | CF12: 900.00 | CG12: 550.00 | CH12: 900.00 | CI12: 550.00 | CJ12: 450.00 | CK12: 0.00 | CL12: 0.00 | CM12: 339.30 | CN12: 623.00 | CO12: 280.35 | CP12: 753.99 | CQ12: 286.9 | CR12: 0.00 | CS12: 0.00 | CT12: 0.00
A13: Cantidad de Equilibrio | B13: =B37 -> 884.4 | D13: 0.50 | E13: 970,090.00 | F13: 646.73 | G13: 1,500.00 | H13: 46.67 | I13: 600.06 | J13: 1,176.06 | K13: 1,200.00 | L13: 750.00 | M13: 1,500.00 | N13: 750.00 | O13: 750.00 | P13: 442.21 | Q13: 1,057.79 | R13: 528.90 | S13: 884.41 | T13: 269.6 | W13: Cantidad de Equilibrio | X13: =X22 -> 64.4 | Z13: 0.50 | AA13: 3,100.00 | AB13: 31.00 | AC13: 100.00 | AD13: 4.00 | AE13: 27.00 | AF13: 57.00 | AG13: 100.00 | AH13: 50.00 | AI13: 100.00 | AJ13: 50.00 | AK13: 50.00 | AL13: 32.19 | AM13: 67.81 | AN13: 33.91 | AO13: 64.38 | AP13: 22.5 | AT13: Cantidad de Equilibrio | AU13: =AU22 -> 36.7 | AW13: 0.50 | AX13: 200.00 | AY13: 5.00 | AZ13: 40.00 | BA13: 5.00 | BB13: 0.00 | BC13: 4.00 | BD13: 40.00 | BE13: 20.00 | BF13: 40.00 | BG13: 20.00 | BH13: 20.00 | BK13: 18.33 | BL13: 21.67 | BM13: 10.83 | BN13: 36.67 | BO13: 5.1 | BV13: Precio de Equilibrio | BW13: =-(BW8/BW9)+(BW23/BW9) -> 623.0 | BY13: 0.50 | BZ13: 250,060.00 | CA13: 250.06 | CB13: 1,000.00 | CC13: 100.00 | CD13: 150.06 | CE13: 400.06 | CF13: 1,000.00 | CG13: 500.00 | CH13: 1,000.00 | CI13: 500.00 | CJ13: 500.00 | CK13: 0.00 | CL13: 0.00 | CM13: 377.00 | CN13: 623.00 | CO13: 311.50 | CP13: 753.99 | CQ13: 286.9 | CR13: 0.00 | CS13: 0.00 | CT13: 0.00
A14: Ingreso Marginal | B14: =((-B8/B9))+(((2*B37)/B9)) -> 615.6 | D14: 0.55 | E14: 1,281,611.50 | F14: 776.73 | G14: 1,650.00 | H14: 42.42 | I14: 734.31 | J14: 1,176.06 | K14: 1,200.00 | L14: 675.00 | M14: 1,650.00 | N14: 675.00 | O14: 825.00 | P14: 486.43 | Q14: 1,057.79 | R14: 581.79 | S14: 884.41 | T14: 269.6 | W14: Ingreso Marginal | X14: =((X7/X8)*-1)+((2/X8)*X22) -> 35.6 | Z14: 0.55 | AA14: 3,700.00 | AB14: 33.64 | AC14: 110.00 | AD14: 3.64 | AE14: 30.00 | AF14: 63.00 | AG14: 110.00 | AH14: 45.00 | AI14: 110.00 | AJ14: 45.00 | AK14: 55.00 | AL14: 35.41 | AM14: 67.81 | AN14: 37.30 | AO14: 64.38 | AP14: 22.5 | AT14: Ingreso Marginal | AU14: =((AU7/AU8)*-1)+((2/AU8)*AU22) -> 3.3 | AW14: 0.55 | AX14: 217.60 | AY14: 4.95 | AZ14: 44.00 | BA14: 4.55 | BB14: 0.40 | BC14: 4.80 | BD14: 44.00 | BE14: 18.00 | BF14: 44.00 | BG14: 18.00 | BH14: 22.00 | BK14: 20.17 | BL14: 21.67 | BM14: 11.92 | BN14: 36.67 | BO14: 5.1 | BV14: Cantidad de Equilibrio | BW14: =BW23 -> 754.0 | BY14: 0.55 | BZ14: 293,666.00 | CA14: 266.97 | CB14: 1,100.00 | CC14: 90.91 | CD14: 176.06 | CE14: 473.06 | CF14: 1,100.00 | CG14: 450.00 | CH14: 1,100.00 | CI14: 450.00 | CJ14: 550.00 | CK14: 0.00 | CL14: 0.00 | CM14: 414.69 | CN14: 623.00 | CO14: 342.65 | CP14: 753.99 | CQ14: 286.9 | CR14: 0.00 | CS14: 0.00 | CT14: 0.00
A15: Costo Marginal | B15: =(3*(B4*(B37^2)))+(2*B5*B37)+B6 -> 615.6 | D15: 0.60 | E15: 1,657,708.00 | F15: 920.95 | G15: 1,800.00 | H15: 38.89 | I15: 882.06 | J15: 1,176.06 | K15: 1,200.00 | L15: 600.00 | M15: 1,800.00 | N15: 600.00 | O15: 900.00 | P15: 530.65 | Q15: 1,057.79 | R15: 634.68 | S15: 884.41 | T15: 269.6 | W15: Costo Marginal | X15: =(2*(X4*X22))+(X5) -> 35.6 | Z15: 0.60 | AA15: 4,360.00 | AB15: 36.33 | AC15: 120.00 | AD15: 3.33 | AE15: 33.00 | AF15: 69.00 | AG15: 120.00 | AH15: 40.00 | AI15: 120.00 | AJ15: 40.00 | AK15: 60.00 | AL15: 38.63 | AM15: 67.81 | AN15: 40.69 | AO15: 64.38 | AP15: 22.5 | AT15: Costo Marginal | AU15: =(2*(AU4*AU22))+(AU5) -> 3.3 | AW15: 0.60 | AX15: 238.40 | AY15: 4.97 | AZ15: 48.00 | BA15: 4.17 | BB15: 0.80 | BC15: 5.60 | BD15: 48.00 | BE15: 16.00 | BF15: 48.00 | BG15: 16.00 | BH15: 24.00 | BK15: 22.00 | BL15: 21.67 | BM15: 13.00 | BN15: 36.67 | BO15: 5.1 | BV15: Ingreso Marginal | BW15: =(-BW8/BW9)+((2*BW25)/BW9) -> 246.0 | BY15: 0.60 | BZ15: 344,872.00 | CA15: 287.39 | CB15: 1,200.00 | CC15: 83.33 | CD15: 204.06 | CE15: 552.06 | CF15: 1,200.00 | CG15: 400.00 | CH15: 1,200.00 | CI15: 400.00 | CJ15: 600.00 | CK15: 0.00 | CL15: 0.00 | CM15: 452.39 | CN15: 623.00 | CO15: 373.80 | CP15: 753.99 | CQ15: 286.9 | CR15: 0.00 | CS15: 0.00 | CT15: 0.00
A16: Costo Medio | B16: =B17/B37 -> 269.6 | D16: 0.65 | E16: 2,104,454.50 | F16: 1,079.21 | G16: 1,950.00 | H16: 35.90 | I16: 1,043.31 | J16: 1,176.06 | K16: 1,200.00 | L16: 525.00 | M16: 1,950.00 | N16: 525.00 | O16: 975.00 | P16: 574.87 | Q16: 1,057.79 | R16: 687.57 | S16: 884.41 | T16: 269.6 | W16: Costo Medio | X16: =X17/X22 -> 22.5 | Z16: 0.65 | AA16: 5,080.00 | AB16: 39.08 | AC16: 130.00 | AD16: 3.08 | AE16: 36.00 | AF16: 75.00 | AG16: 130.00 | AH16: 35.00 | AI16: 130.00 | AJ16: 35.00 | AK16: 65.00 | AL16: 41.84 | AM16: 67.81 | AN16: 44.08 | AO16: 64.38 | AP16: 22.5 | AT16: Costo Medio | AU16: =AU17/AU22 -> 5.1 | AW16: 0.65 | AX16: 262.40 | AY16: 5.05 | AZ16: 52.00 | BA16: 3.85 | BB16: 1.20 | BC16: 6.40 | BD16: 52.00 | BE16: 14.00 | BF16: 52.00 | BG16: 14.00 | BH16: 26.00 | BK16: 23.83 | BL16: 21.67 | BM16: 14.08 | BN16: 36.67 | BO16: 5.1 | BV16: Costo Marginal | BW16: =((3*BW4)*(BW25^2))+(2*BW5*BW25)+BW6 -> 246.0 | BY16: 0.65 | BZ16: 404,278.00 | CA16: 310.98 | CB16: 1,300.00 | CC16: 76.92 | CD16: 234.06 | CE16: 637.06 | CF16: 1,300.00 | CG16: 350.00 | CH16: 1,300.00 | CI16: 350.00 | CJ16: 650.00 | CK16: 0.00 | CL16: 0.00 | CM16: 490.09 | CN16: 623.00 | CO16: 404.95 | CP16: 753.99 | CQ16: 286.9 | CR16: 0.00 | CS16: 0.00 | CT16: 0.00
A17: Costo Total | B17: =B4*(B37^3)+B5*(B37^2)+(B6*B37)+B7 -> 238,476.6 | D17: 0.70 | E17: 2,627,926.00 | F17: 1,251.39 | G17: 2,100.00 | H17: 33.33 | I17: 1,218.06 | J17: 1,176.06 | K17: 1,200.00 | L17: 450.00 | M17: 2,100.00 | N17: 450.00 | O17: 1,050.00 | P17: 619.09 | Q17: 1,057.79 | R17: 740.46 | S17: 884.41 | T17: 269.6 | W17: Costo Total | X17: =X4*(X22^2)+X5*X22+X6 -> 1,450.1 | Z17: 0.70 | AA17: 5,860.00 | AB17: 41.86 | AC17: 140.00 | AD17: 2.86 | AE17: 39.00 | AF17: 81.00 | AG17: 140.00 | AH17: 30.00 | AI17: 140.00 | AJ17: 30.00 | AK17: 70.00 | AL17: 45.06 | AM17: 67.81 | AN17: 47.47 | AO17: 64.38 | AP17: 22.5 | AT17: Costo Total | AU17: =AU4*(AU22^2)+AU5*AU22+AU6 -> 187.8 | AW17: 0.70 | AX17: 289.60 | AY17: 5.17 | AZ17: 56.00 | BA17: =$AU$6/BF17 -> 3.57 | BB17: 1.60 | BC17: 7.20 | BD17: 56.00 | BE17: 12.00 | BF17: 56.00 | BG17: 12.00 | BH17: 28.00 | BK17: 25.67 | BL17: 21.67 | BM17: 15.17 | BN17: 36.67 | BO17: 5.1 | BV17: Costo Medio | BW17: =(BW4*(BW25^2))+(BW5*BW25)+BW6+(BW7/BW25) -> 227.2 | BY17: 0.70 | BZ17: 472,484.00 | CA17: 337.49 | CB17: 1,400.00 | CC17: 71.43 | CD17: 266.06 | CE17: 728.06 | CF17: 1,400.00 | CG17: 300.00 | CH17: 1,400.00 | CI17: 300.00 | CJ17: 700.00 | CK17: 0.00 | CL17: 0.00 | CM17: 527.79 | CN17: 623.00 | CO17: 436.10 | CP17: 753.99 | CQ17: 286.9 | CR17: 0.00 | CS17: 0.00 | CT17: 0.00
A18: Ingreso Total | B18: =B13*B12 -> 935,526.5 | D18: 0.75 | E18: 3,234,197.50 | F18: 1,437.42 | G18: 2,250.00 | H18: 31.11 | I18: 1,406.31 | J18: 1,176.06 | K18: 1,200.00 | L18: 375.00 | M18: 2,250.00 | N18: 375.00 | O18: 1,125.00 | P18: 663.31 | Q18: 1,057.79 | R18: 793.35 | S18: 884.41 | T18: 269.6 | W18: Ingreso Total | X18: =X13*X12 -> 4,365.4 | Z18: 0.75 | AA18: 6,700.00 | AB18: 44.67 | AC18: 150.00 | AD18: 2.67 | AE18: 42.00 | AF18: 87.00 | AG18: 150.00 | AH18: 25.00 | AI18: 150.00 | AJ18: 25.00 | AK18: 75.00 | AL18: 48.28 | AM18: 67.81 | AN18: 50.86 | AO18: 64.38 | AP18: 22.5 | AT18: Ingreso Total | AU18: =AU13*AU12 -> 794.4 | AW18: 0.75 | AX18: 320.00 | AY18: 5.33 | AZ18: 60.00 | BA18: 3.33 | BB18: 2.00 | BC18: 8.00 | BD18: 60.00 | BE18: 10.00 | BF18: 60.00 | BG18: 10.00 | BH18: 30.00 | BK18: 27.50 | BL18: 21.67 | BM18: 16.25 | BN18: 36.67 | BO18: 5.1 | BV18: Costo Total | BW18: =(BW4*(BW25^3))+((BW5)*(BW25^2))+(BW6*BW25)+BW7 -> 171,334.8 | BY18: 0.75 | BZ18: 550,090.00 | CA18: 366.73 | CB18: 1,500.00 | CC18: 66.67 | CD18: 300.06 | CE18: 825.06 | CF18: 1,500.00 | CG18: 250.00 | CH18: 1,500.00 | CI18: 250.00 | CJ18: 750.00 | CK18: 0.00 | CL18: 0.00 | CM18: 565.49 | CN18: 623.00 | CO18: 467.25 | CP18: 753.99 | CQ18: 286.9 | CR18: 0.00 | CS18: 0.00 | CT18: 0.00
A19: Beneficio | B19: =B18-B17 -> 697,049.8 | D19: 0.80 | E19: 3,929,344.00 | F19: 1,437.42 | G19: 2,250.00 | H19: 29.17 | I19: 1,408.25 | J19: 1,176.06 | K19: 1,200.00 | L19: 300.00 | M19: 2,400.00 | N19: 300.00 | O19: 1,200.00 | P19: 707.53 | Q19: 1,057.79 | R19: 846.23 | S19: 884.41 | T19: 269.6 | W19: Beneficio | X19: =X18-X17 -> 2,915.3 | Z19: 0.80 | AA19: 7,600.00 | AB19: 47.50 | AC19: 160.00 | AD19: 2.50 | AE19: 45.00 | AF19: 93.00 | AG19: 160.00 | AH19: 20.00 | AI19: 160.00 | AJ19: 20.00 | AK19: 80.00 | AL19: 51.50 | AM19: 67.81 | AN19: 54.25 | AO19: 64.38 | AP19: 22.5 | AT19: Beneficio | AU19: =AU18-AU17 -> 606.7 | AW19: 0.80 | AX19: 353.60 | AY19: 5.53 | AZ19: 64.00 | BA19: 3.13 | BB19: 2.40 | BC19: 8.80 | BD19: 64.00 | BE19: 8.00 | BF19: 64.00 | BG19: 8.00 | BH19: 32.00 | BK19: 29.33 | BL19: 21.67 | BM19: 17.33 | BN19: 36.67 | BO19: 5.1 | BV19: Ingreso Total | BW19: =((-BW8*BW25)/BW9)+((BW25^2)/BW9) -> 469,739.7 | BY19: 0.80 | BZ19: 637,696.00 | CA19: 398.56 | CB19: 1,600.00 | CC19: 62.50 | CD19: 336.06 | CE19: 928.06 | CF19: 1,600.00 | CG19: 200.00 | CH19: 1,600.00 | CI19: 200.00 | CJ19: 800.00 | CK19: 0.00 | CL19: 0.00 | CM19: 603.19 | CN19: 623.00 | CO19: 498.40 | CP19: 753.99 | CQ19: 286.9 | CR19: 0.00 | CS19: 0.00 | CT19: 0.00
A20: Elasticidad Precio | B20: =+B9*(B12/B13) -> -2.4 | D20: 0.85 | E20: 4,719,440.50 | F20: 1,437.42 | G20: 2,250.00 | H20: 27.45 | I20: 1,409.97 | J20: 1,176.06 | K20: 1,200.00 | L20: 225.00 | M20: 2,550.00 | N20: 225.00 | O20: 1,275.00 | P20: 751.75 | Q20: 1,057.79 | R20: 899.12 | S20: 884.41 | T20: 269.6 | W20: Elasticidad Precio | X20: =+X8*(X12/X13) -> -2.1 | Z20: 0.85 | AA20: 8,560.00 | AB20: 50.35 | AC20: 170.00 | AD20: 2.35 | AE20: 48.00 | AF20: 99.00 | AG20: 170.00 | AH20: 15.00 | AI20: 170.00 | AJ20: 15.00 | AK20: 85.00 | AL20: 54.72 | AM20: 67.81 | AN20: 57.64 | AO20: 64.38 | AP20: 22.5 | AT20: Elasticidad Precio | AU20: =+AU8*(AU12/AU13) -> -1.2 | AW20: 0.85 | AX20: 390.40 | AY20: 5.74 | AZ20: 68.00 | BA20: 2.94 | BB20: 2.80 | BC20: 9.60 | BD20: 68.00 | BE20: 6.00 | BF20: 68.00 | BG20: 6.00 | BH20: 34.00 | BK20: 31.17 | BL20: 21.67 | BM20: 18.42 | BN20: 36.67 | BO20: 5.1 | BV20: Beneficio | BW20: =BW19-BW18 -> 298,404.9 | BY20: 0.85 | BZ20: 735,902.00 | CA20: 432.88 | CB20: 1,700.00 | CC20: 58.82 | CD20: 374.06 | CE20: 928.06 | CF20: 1,600.00 | CG20: 150.00 | CH20: 1,700.00 | CI20: 150.00 | CJ20: 850.00 | CK20: 0.00 | CL20: 0.00 | CM20: 640.89 | CN20: 623.00 | CO20: 529.55 | CP20: 753.99 | CQ20: 286.9 | CR20: 0.00 | CS20: 0.00 | CT20: 0.00
D21: 0.90 | E21: 5,610,562.00 | F21: 1,437.42 | G21: 2,250.00 | H21: 25.93 | I21: 1,411.50 | J21: 1,176.06 | K21: 1,200.00 | L21: 150.00 | M21: 2,700.00 | N21: 150.00 | O21: 1,350.00 | P21: 795.97 | Q21: 1,057.79 | R21: 952.01 | S21: 884.41 | T21: 269.6 | Z21: 0.90 | AA21: 9,580.00 | AB21: 53.22 | AC21: 180.00 | AD21: 2.22 | AE21: 51.00 | AF21: 99.00 | AG21: 170.00 | AH21: 10.00 | AI21: 180.00 | AJ21: 10.00 | AK21: 90.00 | AL21: 57.94 | AM21: 67.81 | AN21: 61.03 | AO21: 64.38 | AP21: 22.5 | AW21: 0.90 | AX21: 430.40 | AY21: 5.98 | AZ21: 72.00 | BA21: 2.78 | BB21: 3.20 | BC21: 10.40 | BD21: 72.00 | BE21: 4.00 | BF21: 72.00 | BG21: 4.00 | BH21: 36.00 | BK21: 33.00 | BL21: 21.67 | BM21: 19.50 | BN21: 36.67 | BO21: 5.1 | BV21: Elasticidad Precio | BW21: =+BW9*(BW13/BW14) -> -1.7 | BY21: 0.90 | BZ21: 845,308.00 | CA21: 469.62 | CB21: 1,800.00 | CC21: 55.56 | CD21: 414.06 | CE21: 928.06 | CF21: 1,600.00 | CG21: 100.00 | CH21: 1,800.00 | CI21: 100.00 | CJ21: 900.00 | CK21: 0.00 | CL21: 0.00 | CM21: 678.59 | CN21: 623.00 | CO21: 560.70 | CP21: 753.99 | CQ21: 286.9 | CR21: 0.00 | CS21: 0.00 | CT21: 0.00
A22: Inserte un valor y particular | B22: =B13 -> 884.4 | D22: 0.95 | E22: 6,608,783.50 | F22: 1,437.42 | G22: 2,250.00 | H22: 24.56 | I22: 1,412.86 | J22: 1,176.06 | K22: 1,200.00 | L22: 75.00 | M22: 2,850.00 | N22: 75.00 | O22: 1,425.00 | P22: 840.19 | Q22: 1,057.79 | R22: 1,004.90 | S22: 884.41 | T22: 269.6 | W22: y1 Empresa | X22: =(X7-(-X8*X5))/(2+(2*X4*-X8)) -> 64.4 | Y22: =X7-(-X8*X5) -> 206 | Z22: 0.95 | AA22: 10,660.00 | AB22: 56.11 | AC22: 190.00 | AD22: 2.11 | AE22: 54.00 | AF22: 99.00 | AG22: 170.00 | AH22: 5.00 | AI22: 190.00 | AJ22: 5.00 | AK22: 95.00 | AL22: 61.16 | AM22: 67.81 | AN22: 64.42 | AO22: 64.38 | AP22: 22.5 | AT22: y1 Empresa | AU22: =(AU7-(-AU8*AU5))/(2+(2*AU4*-AU8)) -> 36.7 | AW22: 0.95 | AX22: 473.60 | AY22: 6.23 | AZ22: 76.00 | BA22: 2.63 | BB22: 3.60 | BC22: 11.20 | BD22: 76.00 | BE22: 2.00 | BF22: 76.00 | BG22: 2.00 | BH22: 38.00 | BK22: 34.83 | BL22: 21.67 | BM22: 20.58 | BN22: 36.67 | BO22: 5.1 | BY22: 0.95 | BZ22: 966,514.00 | CA22: 508.69 | CB22: 1,900.00 | CC22: 52.63 | CD22: 456.06 | CE22: 928.06 | CF22: 1,600.00 | CG22: 50.00 | CH22: 1,900.00 | CI22: 50.00 | CJ22: 950.00 | CK22: 0.00 | CL22: 0.00 | CM22: 716.29 | CN22: 623.00 | CO22: 591.85 | CP22: 753.99 | CQ22: 286.9 | CR22: 0.00 | CS22: 0.00 | CT22: 0.00
D23: 1.00 | E23: 7,720,180.00 | F23: 1,437.42 | G23: 2,250.00 | H23: 23.33 | I23: 1,414.09 | J23: 1,176.06 | K23: 1,200.00 | L23: 0.00 | M23: 3,000.00 | N23: 0.00 | O23: 1,500.00 | P23: 884.41 | Q23: 1,057.79 | R23: 1,057.79 | S23: 884.41 | T23: 269.6 | W23: Num. Enpresas | X23: =ComMono_maxben_cp_2g!C26 -> 10.0 | Y23: =2+(2*X4*-X8) -> 3.2 | Z23: 1.00 | AA23: 11,800.00 | AB23: 59.00 | AC23: 200.00 | AD23: 2.00 | AE23: 57.00 | AF23: 99.00 | AG23: 170.00 | AH23: 0.00 | AI23: 200.00 | AJ23: 0.00 | AK23: 100.00 | AL23: 64.38 | AM23: 67.81 | AN23: 67.81 | AO23: 64.38 | AP23: 22.5 | AT23: Num. Enpresas | AU23: =+ComMono_maxben_Lp_2g!C26 -> 20.0 | AW23: 1.00 | AX23: 520.00 | AY23: 6.50 | AZ23: 80.00 | BA23: 2.50 | BB23: 4.00 | BC23: 12.00 | BD23: 80.00 | BE23: 0.00 | BF23: 80.00 | BG23: 0.00 | BH23: 40.00 | BK23: 36.67 | BL23: 21.67 | BM23: 21.67 | BN23: 36.67 | BO23: 5.1 | BV23: y1 equilibrio | BW23: =((-1*(2*BW5-2/BW9))+((((2*BW5-2/BW9)^2))-((12*BW4*(BW6+BW8/BW9))))^0.5)/(6*BW4) -> 754.0 | BY23: 1.00 | BZ23: 1,100,120.00 | CA23: 550.06 | CB23: 2,000.00 | CC23: 50.00 | CD23: 500.06 | CE23: 928.06 | CF23: 1,600.00 | CG23: 0.00 | CH23: 2,000.00 | CI23: 0.00 | CJ23: 1,000.00 | CK23: 0.00 | CL23: 0.00 | CM23: 753.99 | CN23: 623.00 | CO23: 623.00 | CP23: 753.99 | CQ23: 286.9 | CR23: 0.00 | CS23: 0.00 | CT23: 0.00
W24: Y1 Industria | X24: =+X23*X22 -> 643.8 | Y24: =Y22/Y23 -> 64.375 | AT24: Y1 Industria | AU24: =+AU23*AU22 -> 733.3 | BV24: y2 equilibrio | BW24: =((-1*(2*BW5-2/BW9))-((((2*BW5-2/BW9)^2))-((12*BW4*(BW6+BW8/BW9))))^0.5)/(6*BW4) -> -4420.7
A25: Costo Total | B25: =B4*(B22^(3))+B5*(B22^(2))+B6*B22+B7 -> 238476.6 | Y25: =(X7-(-X8*X5))/(2+(2*X4*-X8)) -> 64.375 | AY25: CORTO PLAZO | BV25: y equilibrio | BW25: =IF(BW23>0,BW23,BW24) -> 754.0
A26: Costo Fijo | B26: =B7 -> 70000.0 | BA26: x | BB26: p | BC26: x*k | BH26: x | BI26: p | BJ26: x*k | BK26: XILINE | BQ26: X2LINE | CC26: x | CD26: p | CE26: x*k | CJ26: x | CK26: p | CL26: x*k | CM26: XILINE | CS26: X2LINE
A27: Costo Variable | B27: =B25-B26 -> 168476.6 | AT27: PARÁMETROS MODIFICADOS | AY27: 1 | AZ27: 0 | BA27: =$AX$28*AZ27 -> 0 | BB27: =$AX$31*AY27 -> 40 | BC27: =$AX$28*$AU$23*AZ27 -> 0 | BF27: 1 | BG27: 0 | BH27: =$BE$28*BG27 -> 0 | BI27: =$BE$31+($BJ$44*BJ27) -> 17.9089023 | BJ27: =IF($AU$50=1,(($BI$42*BG27)*1.25)*BG27,0) -> 0 | BK27: =$AU$24*BG27 -> 0 | BL27: =$AU$24 -> 733.3 | BM27: =$AU$12*BG27 -> 0 | BN27: =$AU$12 -> 21.7 | BO27: =BG27*$AU$36 -> 0 | BP27: =$AU$36 -> 8.8 | BQ27: =IF($AU$50=0,0,$AU$48) -> 0.0 | BR27: =IF($AU$50=0,0,BG27*$AU$36) -> 0.0 | BS27: =IF($AU$50=0,0,$AU$48*AZ27) -> 0.0 | BT27: =IF($AU$50=0,0,$AU$36) -> 0.0 | BV27: 0 | BW27: =+ComMono_maxben_Lp_3g!C27 -> 3.0 | BX27: 3.0 | CA27: 1 | CB27: 0 | CC27: =$BZ$28*CB27 -> 0 | CD27: =$BZ$31*CA27 -> 1000 | CE27: =$BZ$28*$BW$27*CB27 -> 0 | CH27: 1 | CI27: 0 | CJ27: =$CG$28*CI27 -> 0 | CK27: =$CG$31+($CL$44*CL27) -> 486.0562712 | CL27: =IF($BW$53=1,(($CK$42*CI27)*1.25)*CI27,0) -> 0 | CM27: =$BW$28*CI27 -> 0 | CN27: =+$BW$28 -> 2262.0 | CO27: =$BW$13*CI27 -> 0 | CP27: =$BW$13 -> 623.0 | CQ27: =CI27*$BW$40 -> 0 | CR27: =+$BW$40 -> 286.9 | CS27: =IF($BW$53=0,0,$BW$52) -> 0.0 | CT27: =IF($BW$53=0,0,$BW$40*CI27) -> 0.0 | CU27: =IF($BW$53=0,0,$BW$52*CB27) -> 0 | CV27: =IF($BW$53=0,0,$BW$40) -> 0.0
A28: Costo Medio | B28: =B25/B22 -> 269.6 | AT28: a | AU28: =AU4 -> 0.10 | AW28: b0 | AX28: =AU7 -> 80.00 | AY28: 0.9 | AZ28: 0.1 | BA28: =$AX$28*AZ28 -> 8 | BB28: =$AX$31*AY28 -> 36 | BC28: 160 | BD28: b0 | BE28: =BE31*BE29*-1 -> 35.82 | BF28: 0.9 | BG28: 0.1 | BH28: 3.58178046 | BI28: =$BE$31+($BJ$44*BJ28) -> 17.9089023 | BJ28: 0 | BK28: =$AU$24*BG28 -> 73.33333333 | BL28: =$AU$24 -> 733.3 | BM28: =$AU$12*BG28 -> 2.166666667 | BN28: =$AU$12 -> 21.7 | BO28: 0.8780193008 | BP28: =$AU$36 -> 8.8 | BQ28: =IF($AU$50=0,0,$AU$48) -> 0.0 | BR28: =IF($AU$50=0,0,BG28*$AU$36) -> 0.0 | BS28: =IF($AU$50=0,0,$AU$48*AZ28) -> 0.0 | BT28: =IF($AU$50=0,0,$AU$36) -> 0.0 | BV28: Y1 Industria | BW28: =+BW27*BW23 -> 2262.0 | BY28: b0 | BZ28: =BW8 -> 2,000.00 | CA28: 0.9 | CB28: 0.1 | CC28: =$BZ$28*CB28 -> 200 | CD28: =$BZ$31*CA28 -> 900 | CE28: =$BZ$28*$BW$27*CB28 -> 600 | CF28: b0 | CG28: =+BW35 -> 972.11 | CH28: 0.9 | CI28: 0.1 | CJ28: =$CG$28*CI28 -> 97.21125424 | CK28: 486.0562712 | CL28: 0 | CM28: =$BW$28*CI28 -> 226.1971399 | CN28: =+$BW$28 -> 2262.0 | CO28: =$BW$13*CI28 -> 62.30047668 | CP28: =$BW$13 -> 623.0 | CQ28: =CI28*$BW$40 -> 28.6854992 | CR28: =+$BW$40 -> 286.854992 | CS28: =IF($BW$53=0,0,$BW$52) -> 0.0 | CT28: =IF($BW$53=0,0,$BW$40*CI28) -> 0.0 | CU28: =IF($BW$53=0,0,$BW$52*CB28) -> 0 | CV28: =IF($BW$53=0,0,$BW$40) -> 0.0
A29: Costo Marginal | B29: =(3*B4*(B22^(2)))+(2*B5*B22)+B6 -> 615.6 | AT29: b | AU29: =AU5 -> -4.00 | AW29: b1 | AX29: =AU8 -> -2.00 | AY29: 0.8 | AZ29: 0.2 | BA29: 16 | BB29: 32 | BC29: 320 | BD29: b1 | BE29: =AX29 -> -2.00 | BF29: 0.8 | BG29: 0.2 | BH29: 7.16356092 | BI29: 17.9089023 | BJ29: 0 | BK29: 146.6666667 | BL29: 733.3 | BM29: 4.333333333 | BN29: 21.7 | BO29: 1.756038602 | BP29: 8.8 | BQ29: 0.0 | BR29: 0.0 | BS29: 0.0 | BT29: 0.0 | BY29: b1 | BZ29: =BW9 -> -2.00 | CA29: 0.8 | CB29: 0.2 | CC29: 400 | CD29: 800 | CE29: 1200 | CF29: b1 | CG29: =BZ29 -> -2.00 | CH29: 0.8 | CI29: 0.2 | CJ29: 194.4225085 | CK29: 486.0562712 | CL29: 0 | CM29: 452.3942798 | CN29: 2262.0 | CO29: 124.6009534 | CP29: 623.0 | CQ29: 57.37099839 | CR29: 286.854992 | CS29: 0.0 | CT29: 0.0 | CU29: 0 | CV29: 0.0
A30: Costo Fijo Medio | B30: =B26/B22 -> 79.1 | AT30: c | AU30: =AU6 -> 200.00 | AY30: 0.7 | AZ30: 0.3 | BA30: 24 | BB30: 28 | BC30: 480 | BF30: 0.7 | BG30: 0.3 | BH30: 10.74534138 | BI30: 17.9089023 | BJ30: 0 | BK30: 220 | BL30: 733.3 | BM30: 6.5 | BN30: 21.7 | BO30: 2.634057903 | BP30: 8.8 | BQ30: 0.0 | BR30: 0.0 | BS30: 0.0 | BT30: 0.0 | BV30: PARÁMETROS MODIFICADOS | CA30: 0.7 | CB30: 0.3 | CC30: 600 | CD30: 700 | CE30: 1800 | CH30: 0.7 | CI30: 0.3 | CJ30: 291.6337627 | CK30: 486.0562712 | CL30: 0 | CM30: 678.5914197 | CN30: 2262.0 | CO30: 186.90143 | CP30: 623.0 | CQ30: 86.05649759 | CR30: 286.854992 | CS30: 0.0 | CT30: 0.0 | CU30: 0 | CV30: 0.0
A31: Costo Variable Medio | B31: =B27/B22 -> 190.5 | AT31: b0 | AU31: =AU33*AU32*-1 -> 35.82 | AW31: b0/b1 | AX31: =AX28/AX29*-1 -> 40.00 | AY31: 0.6 | AZ31: 0.4 | BA31: 32 | BB31: 24 | BC31: 640 | BD31: b0/b1 | BE31: =AU33 -> 17.91 | BF31: 0.6 | BG31: 0.4 | BH31: 14.32712184 | BI31: 17.9089023 | BJ31: 0 | BK31: 293.3333333 | BL31: 733.3 | BM31: 8.666666667 | BN31: 21.7 | BO31: 3.512077203 | BP31: 8.8 | BQ31: 0.0 | BR31: 0.0 | BS31: 0.0 | BT31: 0.0 | BV31: a | BW31: =BW4 -> 0.00 | BY31: b0/b1 | BZ31: =BZ28/BZ29*-1 -> 1,000.00 | CA31: 0.6 | CB31: 0.4 | CC31: 800 | CD31: 600 | CE31: 2400 | CF31: b0/b1 | CG31: =BW37 -> 486.06 | CH31: 0.6 | CI31: 0.4 | CJ31: 388.8450169 | CK31: 486.0562712 | CL31: 0 | CM31: 904.7885596 | CN31: 2262.0 | CO31: 249.2019067 | CP31: 623.0 | CQ31: 114.7419968 | CR31: 286.854992 | CS31: 0.0 | CT31: 0.0 | CU31: 0 | CV31: 0.0
A32: min | B32: =(B4*(B23^(3))+B5*(B23^(2))+B6*B23+B7)/B23 ->  | AT32: b1 | AU32: =AU8 -> -2.00 | AW32: 1/b1 | AX32: =1/AX29 -> -0.50 | AY32: 0.5 | AZ32: 0.5 | BA32: 40 | BB32: 20 | BC32: 800 | BD32: 1/b1 | BE32: =1/BE29 -> -0.50 | BF32: 0.5 | BG32: 0.5 | BH32: 17.9089023 | BI32: 17.9089023 | BJ32: 0 | BK32: 366.6666667 | BL32: 733.3 | BM32: 10.83333333 | BN32: 21.7 | BO32: 4.390096504 | BP32: 8.8 | BQ32: 0.0 | BR32: 0.0 | BS32: 0.0 | BT32: 0.0 | BV32: b | BW32: =BW5 -> 0.05 | BY32: 1/b1 | BZ32: =1/BZ29 -> -0.50 | CA32: 0.5 | CB32: 0.5 | CC32: 1000 | CD32: 500 | CE32: 3000 | CF32: 1/b1 | CG32: =1/CG29 -> -0.50 | CH32: 0.5 | CI32: 0.5 | CJ32: 486.0562712 | CK32: 486.0562712 | CL32: 0 | CM32: 1130.9857 | CN32: 2262.0 | CO32: 311.5023834 | CP32: 623.0 | CQ32: 143.427496 | CR32: 286.854992 | CS32: 0.0 | CT32: 0.0 | CU32: 0 | CV32: 0.0
A33: costo mínimo | B33: =(B4*(ComMono_maxben_cp_3g!D16^(3))+B5*(ComMono_maxben_cp_3g!D16^(2))+B6*ComMono_maxben_cp_3g!D16+B7)/ComMono_maxben_cp_3g!D16 ->  | AT33: b0/b1 | AU33: =((1/AU8)*(-AU37)+AU36) -> 17.91 | AY33: 0.4 | AZ33: 0.6 | BA33: 48 | BB33: 16 | BC33: 960 | BF33: 0.4 | BG33: 0.6 | BH33: 21.49068276 | BI33: 17.9089023 | BJ33: 0 | BK33: 440 | BL33: 733.3 | BM33: 13 | BN33: 21.7 | BO33: 5.268115805 | BP33: 8.8 | BQ33: 0.0 | BR33: 0.0 | BS33: 0.0 | BT33: 0.0 | BV33: c | BW33: =BW6 -> 0.06 | CA33: 0.4 | CB33: 0.6 | CC33: 1200 | CD33: 400 | CE33: 3600 | CH33: 0.4 | CI33: 0.6 | CJ33: 583.2675254 | CK33: 486.0562712 | CL33: 0 | CM33: 1357.182839 | CN33: 2262.0 | CO33: 373.8028601 | CP33: 623.0 | CQ33: 172.1129952 | CR33: 286.854992 | CS33: 0.0 | CT33: 0.0 | CU33: 0 | CV33: 0.0
AW34: p | AX34: =AU12 -> 21.67 | AY34: 0.3 | AZ34: 0.7 | BA34: 56 | BB34: 12 | BC34: 1120 | BD34: p | BE34: =AU36 -> 8.78 | BF34: 0.3 | BG34: 0.7 | BH34: 25.07246322 | BI34: 17.9089023 | BJ34: 0 | BK34: 513.3333333 | BL34: 733.3 | BM34: 15.16666667 | BN34: 21.7 | BO34: 6.146135106 | BP34: 8.8 | BQ34: 0.0 | BR34: 0.0 | BS34: 0.0 | BT34: 0.0 | BV34: d | BW34: =BW7 -> 100,000.00 | BY34: p | BZ34: =BW13 -> 623.00 | CA34: 0.3 | CB34: 0.7 | CC34: 1400 | CD34: 300 | CE34: 4200 | CF34: p | CG34: =BW40 -> 286.85 | CH34: 0.3 | CI34: 0.7 | CJ34: 680.4787797 | CK34: 486.0562712 | CL34: 0 | CM34: 1583.379979 | CN34: 2262.0 | CO34: 436.1033368 | CP34: 623.0 | CQ34: 200.7984944 | CR34: 286.854992 | CS34: 0.0 | CT34: 0.0 | CU34: 0 | CV34: 0.0
A35: y1 equilibrio | B35: =((-1*(2*B5-2/B9))+((((2*B5-2/B9)^2))-((12*B4*(B6+B8/B9))))^0.5)/(6*B4) -> 884.4 | AT35: EQUILIBRIO DE LARGO PLAZO | AW35: y1 | AX35: =AX28+(AX29*AX34) -> 36.67 | AY35: 0.2 | AZ35: 0.8 | BA35: 64 | BB35: 8 | BC35: 1280 | BD35: y1 | BE35: =AU37 -> 18.26 | BF35: 0.2 | BG35: 0.8 | BH35: 28.65424368 | BI35: 17.9089023 | BJ35: 0 | BK35: 586.6666667 | BL35: 733.3 | BM35: 17.33333333 | BN35: 21.7 | BO35: 7.024154407 | BP35: 8.8 | BQ35: 0.0 | BR35: 0.0 | BS35: 0.0 | BT35: 0.0 | BV35: b0 | BW35: =BW41-(BW36*BW40) -> 972.11 | BY35: y1 | BZ35: =BZ28+(BZ29*BZ34) -> 753.99 | CA35: 0.2 | CB35: 0.8 | CC35: 1600 | CD35: 200 | CE35: 4800 | CF35: y1 | CG35: =BW41 -> 398.40 | CH35: 0.2 | CI35: 0.8 | CJ35: 777.6900339 | CK35: 486.0562712 | CL35: 0 | CM35: 1809.577119 | CN35: 2262.0 | CO35: 498.4038135 | CP35: 623.0 | CQ35: 229.4839936 | CR35: 286.854992 | CS35: 0.0 | CT35: 0.0 | CU35: 0 | CV35: 0.0
A36: y2 equilibrio | B36: =((-1*(2*B5-2/B9))-((((2*B5-2/B9)^2))-((12*B4*(B6+B8/B9))))^0.5)/(6*B4) -> -1884.4 | AT36: Precio de Equilibrio | AU36: =(AU4*AU37)+AU5+(AU6/AU37) -> 8.8 | AW36: Y1 | AX36: =AX35*AU23 -> 733.33 | AY36: 0.1 | AZ36: 0.9 | BA36: 72 | BB36: 4 | BC36: 1440 | BD36: Y1 | BE36: =BE35*BJ38 -> 1,248.79 | BF36: 0.1 | BG36: 0.9 | BH36: 32.23602414 | BI36: 17.9089023 | BJ36: 0 | BK36: 660 | BL36: 733.3 | BM36: 19.5 | BN36: 21.7 | BO36: 7.902173708 | BP36: 8.8 | BQ36: 0.0 | BR36: 0.0 | BS36: 0.0 | BT36: 0.0 | BV36: b1 | BW36: =BW9 -> -2.00 | BY36: Y1 | BZ36: =BZ35*BW27 -> 2,261.97 | CA36: 0.1 | CB36: 0.9 | CC36: 1800 | CD36: 100 | CE36: 5400 | CF36: Y1 | CG36: =CG35*CL38 -> 4,278.87 | CH36: 0.1 | CI36: 0.9 | CJ36: 874.9012881 | CK36: 486.0562712 | CL36: 0 | CM36: 2035.774259 | CN36: 2262.0 | CO36: 560.7042901 | CP36: 623.0 | CQ36: 258.1694928 | CR36: 286.854992 | CS36: 0.0 | CT36: 0.0 | CU36: 0 | CV36: 0.0
A37: y equilibrio | B37: =IF(B35>0,B35,B36) -> 884.4 | AT37: Cantidad de Equilibrio | AU37: =(AU6/(AU4-(1/AU8)))^0.5 -> 18.3 | AY37: 0 | AZ37: 1 | BA37: 80 | BB37: 0 | BC37: 1600 | BF37: 0 | BG37: 1 | BH37: 35.8178046 | BI37: 17.9089023 | BJ37: =IF($AU$50=1,(($BI$42*BG37)*1.25)*BG37,0) -> 0 | BK37: 733.3333333 | BL37: 733.3 | BM37: 21.66666667 | BN37: 21.7 | BO37: 8.780193008 | BP37: 8.8 | BQ37: 0.0 | BR37: 0.0 | BS37: 0.0 | BT37: 0.0 | BV37: b0/b1 | BW37: =((BW41/BW36)-BW40)*-1 -> 486.06 | CA37: 0 | CB37: 1 | CC37: 2000 | CD37: 0 | CE37: 6000 | CH37: 0 | CI37: 1 | CJ37: 972.1125424 | CK37: 486.0562712 | CL37: =IF($BW$53=1,(($CK$42*CI37)*1.25)*CI37,0) -> 0 | CM37: 2261.971399 | CN37: 2262.0 | CO37: 623.0047668 | CP37: 623.0 | CQ37: 286.854992 | CR37: 286.854992 | CS37: 0.0 | CT37: 0.0 | CU37: 0 | CV37: 0.0
AT38: Ingreso Marginal | AU38: =((AU31/AU32)*-1)+((2/AU32)*AU46) -> -0.3 | BB38: 1/b1new | BJ38: =AU47 -> 68.4 | BK38: =BE32/BJ38 -> -0.007310030211 | CD38: 1/b1new | CL38: =BW51 -> 10.7 | CM38: =CG32/CL38 -> -0.04655464573
AT39: Costo Marginal | AU39: =(2*(AU28*AU46))+(AU29) -> -0.3 | BB39: =AX32/AU23 -> -0.025 | BJ39: k | BK39: 1/b1new | BV39: EQUILIBRIO DE LARGO PLAZO | CD39: =BZ32/BW27 -> -0.1666666667 | CL39: k | CM39: 1/b1new
AT40: Costo Medio | AU40: =AU41/AU46 -> 8.8 | AX40: Elasticidad Precio | AY40: =+AY29*(AY32/AY33) -> 1.0 | BV40: Precio de Equilibrio | BW40: =(BW4*(BW50^2))+(BW5*BW50)+BW6+(BW7/BW50) -> 286.9 | BZ40: Elasticidad Precio | CA40: =+CA29*(CA32/CA33) -> 1.0
AT41: Costo Total | AU41: =AU28*(AU46^2)+AU29*AU46+AU30 -> 160.3 | BB41: m DICP | BC41: =(BB29-BB28)/(BC29-BC28) -> -0.03 | BI41: 0 | BJ41: =BE31 -> 17.91 | BV41: Cantidad de Equilibrio | BW41: =+BW56 -> 398.4 | CD41: m DICP | CE41: =(CD29-CD28)/(CE29-CE28) -> -0.17 | CK41: 0 | CL41: =CG31 -> 486.06
AT42: Ingreso Total | AU42: =AU36*AU37 -> 160.3 | BI42: =(BE34-BB27)/BC41 -> 1,248.8 | BJ42: =AU40 -> 8.8 | BV42: Ingreso Marginal | BW42: =((-BW35/BW36))+((2/BW36)*BW50) -> 87.7 | CK42: =(CG34-CD27)/CE41 -> 4,278.9 | CL42: =BW40 -> 286.9
AT43: Beneficio | AU43: =AU42-AU41 -> 0.0 | BB43: COMPROBACIÓN | BC43: =BB27+(BC41*BC28) -> 36.00 | BV43: Costo Marginal | BW43: =(3*BW31*(BW50^2))+(2*BW32*BW50)+BW33 -> 87.5 | CD43: COMPROBACIÓN | CE43: =CD27+(CE41*CE28) -> 900.00
AT44: Elasticidad Precio | AU44: =+AU32*(AU36/AU37) -> -1.0 | BI44: m DILP | BJ44: =(BJ42-BJ41)/(BI42-BI41) -> -0.01 | BV44: Costo Medio | BW44: =BW45/BW50 -> 286.9 | CK44: m DILP | CL44: =(CL42-CL41)/(CK42-CK41) -> -0.05
BC45: =BC43=BB28 -> TRUE | BV45: Costo Total | BW45: =(BW31*(BW50^3))+(BW32*(BW50^2))+(BW33*BW50)+BW34 -> 114,283.8 | CE45: =CE43=CD28 -> TRUE
AT46: y1 Empresa | AU46: =AU37 -> 18.3 | BV46: Ingreso Total | BW46: =BW40*BW41 -> 114,283.8
AT47: Num. Enpresas | AU47: =AU48/AU46 -> 68.4 | BV47: Beneficio | BW47: =BW46-BW45 -> 0.0
AT48: Y1 Industria | AU48: =BI42 -> 1248.8 | BV48: Elasticidad Precio | BW48: =+BW36*(BW40/BW41) -> -1.4
AT50: Resuelve | AU50: 0 | BV50: y1 Empresa | BW50: =BW41 -> 398.4
BV51: Num. Enpresas | BW51: =BW52/BW50 -> 10.7 | BX51: =+(BW8*BW27)/BW35 -> 6.172124871
AT52: Precio de Equilibrio | AU52: =IF(AU50=1,AU36,-2) -> -2.0 | BV52: Y1 Industria | BW52: =CK42 -> 4278.9
AT53: Cantidad de Equilibrio | AU53: =IF(AU50=1,AU37,-2) -> -2.0 | BS53: 0 | BV53: Resuelve | BW53: 0
BV54: BUSCAR OBJETIVO
BV55: FORMULA | BW55: =(2*BW4*BW56)+BW5-(BW7/(BW56^2))-(1/BW9) -> -0.000342
BS56: 0 | BV56: VALOR Y* | BW56: 398.4025585
BV58: Precio de Equilibrio | BW58: =IF(BW53=1,BW40,0) -> 0.0
BV59: Cantidad de Equilibrio | BW59: =IF(BW53=1,BW41,0) -> 0.0
AT101: SISTEMA DE EQUILIBRIO DE LARGO PLAZO CON COSTOS DE SEGUNDO GRADO | BE101: DEMANDA ORIGINAL | BG101: Ingreso Marginal | BI101: DEMANDA MODIFICADA | BV101: SISTEMA DE EQUILIBRIO DE LARGO PLAZO CON COSTOS DE PRIMER GRADO | CG101: DEMANDA ORIGINAL | CI101: Ingreso Marginal | CK101: DEMANDA MODIFICADA
AW102: Ponderador | AX102: COSTO TOTAL | AY102: COSTO MEDIO | AZ102: COSTO TOTAL | BA102: COSTO FIJO MEDIO | BB102: COSTO VARIABLE MEDIO | BC102: COSTO MARGINAL | BE102: P | BF102: Y | BG102: P | BH102: Y | BI102: P | BJ102: Y | BK102: LineP(x) | BM102: LineP(y) | BO102: LineCU | BY102: Ponderador | BZ102: COSTO TOTAL | CA102: COSTO MEDIO | CC102: COSTO FIJO MEDIO | CD102: COSTO VARIABLE MEDIO | CE102: COSTO MARGINAL | CG102: P | CH102: Y | CI102: P | CJ102: Y | CK102: P | CL102: Y | CM102: LineCU | CN102: LineP(x) LP | CO102: LineP(y) LP | CQ102: LineP(x) | CS102: LineP(y)
AT103: PARÁMETROS ORIGINALES | AW103: 0.00 | AX103: =$AU$106+($AU$105*BF103)+($AU$104*(BF103^2)) -> 100.00 | BK103: =$AU$113*AW103 -> 0.00 | BL103: =$AU$112 -> 13.87 | BM103: =$AU$112*AW103 -> 0.00 | BN103: =$AU$113 -> 8.98 | BO103: =$AU$116 -> 9.8 | BV103: PARÁMETROS ORIGINALES | BY103: 0.00 | CM103: =+$BW$113 -> 20.0 | CN103: =+$BW$114*BY103 -> 0.00 | CO103: =+$BW$113*BY103 -> 0.00 | CP103: =$BW$114 -> 625.00 | CQ103: =$BW$140 -> 10.20 | CR103: =BY103*BW141 -> 0.00 | CS103: =+$BW$113*BY103 -> 0.00 | CT103: =+$BW$123 -> 625.00
AT104: b | AU104: =ComMono_maxben_Lp_2g_iso!C6 -> 0.30 | AW104: 0.05 | AX104: =$AU$106+($AU$105*BF104)+($AU$104*(BF104^2)) -> 100.00 | BK104: =$AU$113*AW104 -> 0.45 | BL104: =$AU$112 -> 13.87 | BM104: =$AU$112*AW104 -> 0.69 | BN104: =$AU$113 -> 8.98 | BO104: =$AU$116 -> 9.8 | BX104: 0.00 | BY104: 0.05 | CK104: =$BW$106+$BW$107/CL104 -> 28.46 | CL104: =IF($BW$153=1,$BW$150*1.3*BY104,"") -> 162.50 | CM104: =+$BW$113 -> 20.0 | CN104: =+$BW$114*BY104 -> 31.25 | CO104: =+$BW$113*BY104 -> 1.00 | CP104: =$BW$114 -> 625.00 | CQ104: =$BW$140 -> 10.20 | CR104: =+$BW$113 -> 20.00 | CS104: =+$BW$113*BY104 -> 1.00 | CT104: =+$BW$123 -> 625.00
AT105: c | AU105: =ComMono_maxben_Lp_2g_iso!C7 -> -4.00 | AW105: 0.10 | AX105: 100.00 | BK105: 0.90 | BL105: 13.87 | BM105: 1.39 | BN105: 8.98 | BO105: 9.8 | BX105: 0.05 | BY105: 0.10 | BZ105: =$BW$107+($BW$106*CH105) -> 3,750.00 | CA105: =IF((BZ105/CH105)<$B$10,(BZ105/CH105),CA104) -> 50.00 | CB105: =IF(CA105=CA104,CB104,CH105) -> 75.00 | CC105: =$BW$107/CH105 -> 40.00 | CD105: =$BW$106 -> 10.00 | CE105: 10.00 | CF105: =CH105 -> 75.00 | CG105: =$BW$108*CH105^($BW$109) -> 57.74 | CH105: =BY105*$BW$114*1.2 -> 75.00 | CI105: =(1+$BW$109)*$BW$108*CJ105^($BW$109) -> 28.87 | CJ105: =CH105 -> 75.00 | CK105: 19.23 | CL105: =IF($BW$153=1,$BW$150*1.3*BY105,"") -> 325.00 | CM105: 20.0 | CN105: =+$BW$114*BY105 -> 62.50 | CO105: =+$BW$113*BY105 -> 2.00 | CP105: 625.00 | CQ105: 10.20 | CR105: 20.00 | CS105: =+$BW$113*BY105 -> 2.00 | CT105: 625.00
AT106: d | AU106: =ComMono_maxben_Lp_2g_iso!C8 -> 100.00 | AW106: 0.15 | AX106: 100.00 | BK106: 1.35 | BL106: 13.87 | BM106: 2.08 | BN106: 8.98 | BO106: 9.8 | BV106: c(y) | BW106: =ComMono_maxben_Lp_1g_iso!C7 -> 10.00 | BX106: 0.06 | BY106: 0.15 | BZ106: 4,125.00 | CA106: 36.67 | CB106: 112.50 | CC106: 26.67 | CD106: 10.00 | CE106: 10.00 | CF106: 112.50 | CG106: 47.14 | CH106: 112.50 | CI106: 23.57 | CJ106: 112.50 | CK106: 16.15 | CL106: 487.50 | CM106: 20.0 | CN106: =+$BW$114*BY106 -> 93.75 | CO106: =+$BW$113*BY106 -> 3.00 | CP106: 625.00 | CQ106: 10.20 | CR106: 20.00 | CS106: =+$BW$113*BY106 -> 3.00 | CT106: 625.00
AT107: b0 | AU107: =ComMono_maxben_Lp_2g_iso!C9 -> 100.00 | AW107: 0.20 | AX107: 100.00 | BK107: 1.80 | BL107: 13.87 | BM107: 2.77 | BN107: 8.98 | BO107: 9.8 | BV107: d | BW107: =ComMono_maxben_Lp_1g_iso!C8 -> 3,000.00 | BX107: 100,000.00 | BY107: 0.20 | BZ107: 4,500.00 | CA107: 30.00 | CB107: 150.00 | CC107: 20.00 | CD107: 10.00 | CE107: 10.00 | CF107: 150.00 | CG107: 40.82 | CH107: 150.00 | CI107: 20.41 | CJ107: 150.00 | CK107: 14.62 | CL107: 650.00 | CM107: 20.0 | CN107: =+$BW$114*BY107 -> 125.00 | CO107: =+$BW$113*BY107 -> 4.00 | CP107: 625.00 | CQ107: 10.20 | CR107: 20.00 | CS107: =+$BW$113*BY107 -> 4.00 | CT107: 625.00
AT108: b1 | AU108: =ComMono_maxben_Lp_2g_iso!C10 -> -0.90 | AW108: 0.25 | AX108: 91.40 | BC108: =2*$AU$104*(BF108^1)+($AU$105) -> -2.38 | BD108: =BF108 -> 2.69 | BE108: =$AU$107*BF108^($AU$108) -> 40.99 | BF108: =$AU$122*1.5*AW107 -> 2.69 | BG108: =(1+$AU$108)*$AU$107*BH108^$AU$108 -> 4.10 | BH108: =BF108 -> 2.69 | BI108: =IF($AU$150=1,$AU$131*BJ108^($AU$132),"") ->  | BJ108: =IF($AU$150=1,$AU$146*1.5*AW107,"") ->  | BK108: 2.24 | BL108: 13.87 | BM108: 3.47 | BN108: 8.98 | BO108: 9.8 | BV108: b0 | BW108: =ComMono_maxben_Lp_1g_iso!C9 -> 500.00 | BX108: 3,000.00 | BY108: 0.25 | BZ108: 4,875.00 | CA108: =IF((BZ108/CH108)<$B$10,(BZ108/CH108),CA107) -> 26.00 | CB108: =IF(CA108=CA107,CB107,CH108) -> 187.50 | CC108: =$BW$107/CH108 -> 16.00 | CD108: =$BW$106 -> 10.00 | CE108: 10.00 | CF108: =CH108 -> 187.50 | CG108: =$BW$108*CH108^($BW$109) -> 36.51 | CH108: =BY108*$BW$114*1.2 -> 187.50 | CI108: =(1+$BW$109)*$BW$108*CJ108^($BW$109) -> 18.26 | CJ108: =CH108 -> 187.50 | CK108: 13.69 | CL108: 812.50 | CM108: 20.0 | CN108: =+$BW$114*BY108 -> 156.25 | CO108: =+$BW$113*BY108 -> 5.00 | CP108: 625.00 | CQ108: 10.20 | CR108: 20.00 | CS108: =+$BW$113*BY108 -> 5.00 | CT108: 625.00
AW109: 0.30 | AX109: 89.93 | AY109: =IF((AX109/BF109)<$B$10,(AX109/BF109),AY108) -> 26.71 | AZ109: =IF(AY109=AY108,AZ108,BF109) -> 3.37 | BA109: =$AU$106/BF109 -> 29.70 | BB109: =AY109-BA109 -> -2.99 | BC109: -1.98 | BD109: 3.37 | BE109: =$AU$107*BF109^($AU$108) -> 33.53 | BF109: =$AU$122*1.5*AW108 -> 3.37 | BG109: 3.35 | BH109: 3.37 | BI109: =IF($AU$150=1,$AU$131*BJ109^($AU$132),"") ->  | BJ109: =IF($AU$150=1,$AU$146*1.5*AW108,"") ->  | BK109: 2.69 | BL109: 13.87 | BM109: 4.16 | BN109: 8.98 | BO109: 9.8 | BV109: b1 | BW109: =ComMono_maxben_Lp_1g_iso!C10 -> -0.50 | BX109: -2.00 | BY109: 0.30 | BZ109: 5,250.00 | CA109: 23.33 | CB109: 225.00 | CC109: 13.33 | CD109: 10.00 | CE109: 10.00 | CF109: 225.00 | CG109: 33.33 | CH109: 225.00 | CI109: 16.67 | CJ109: 225.00 | CK109: 13.08 | CL109: 975.00 | CM109: 20.0 | CN109: =+$BW$114*BY109 -> 187.50 | CO109: =+$BW$113*BY109 -> 6.00 | CP109: 625.00 | CQ109: 10.20 | CR109: 20.00 | CS109: =+$BW$113*BY109 -> 6.00 | CT109: 625.00
AW110: 0.35 | AX110: 88.74 | AY110: 21.96 | AZ110: 4.04 | BA110: 24.75 | BB110: -2.79 | BC110: -1.58 | BD110: 4.04 | BE110: 28.46 | BF110: 4.04 | BG110: 2.85 | BH110: 4.04 | BK110: 3.14 | BL110: 13.87 | BM110: 4.85 | BN110: 8.98 | BO110: 9.8 | BX110: 1,500.00 | BY110: 0.35 | BZ110: 5,625.00 | CA110: 21.43 | CB110: 262.50 | CC110: 11.43 | CD110: 10.00 | CE110: 10.00 | CF110: 262.50 | CG110: 30.86 | CH110: 262.50 | CI110: 15.43 | CJ110: 262.50 | CK110: 12.64 | CL110: 1,137.50 | CM110: 20.0 | CN110: =+$BW$114*BY110 -> 218.75 | CO110: =+$BW$113*BY110 -> 7.00 | CP110: 625.00 | CQ110: 10.20 | CR110: 20.00 | CS110: =+$BW$113*BY110 -> 7.00 | CT110: 625.00
AT111: EQUILIBRIO DE CORTO PLAZO | AW111: 0.40 | AX111: 87.81 | AY111: 18.63 | AZ111: 4.71 | BA111: 21.21 | BB111: -2.59 | BC111: -1.17 | BD111: 4.71 | BE111: 24.77 | BF111: 4.71 | BG111: 2.48 | BH111: 4.71 | BK111: 3.59 | BL111: 13.87 | BM111: 5.55 | BN111: 8.98 | BO111: 9.8 | BY111: 0.40 | BZ111: 6,000.00 | CA111: 20.00 | CB111: 300.00 | CC111: 10.00 | CD111: 10.00 | CE111: 10.00 | CF111: 300.00 | CG111: 28.87 | CH111: 300.00 | CI111: 14.43 | CJ111: 300.00 | CK111: 12.31 | CL111: 1,300.00 | CM111: 20.0 | CN111: =+$BW$114*BY111 -> 250.00 | CO111: =+$BW$113*BY111 -> 8.00 | CP111: 625.00 | CQ111: 10.20 | CR111: 20.00 | CS111: =+$BW$113*BY111 -> 8.00 | CT111: 625.00
AT112: Precio de Equilibrio | AU112: =AU107*AU113^(AU108) -> 13.9 | AW112: 0.45 | AX112: 87.16 | AY112: 16.18 | AZ112: 5.39 | BA112: 18.56 | BB112: -2.38 | BC112: -0.77 | BD112: 5.39 | BE112: 21.97 | BF112: 5.39 | BG112: 2.20 | BH112: 5.39 | BK112: 4.04 | BL112: 13.87 | BM112: 6.24 | BN112: 8.98 | BO112: 9.8 | BV112: EQUILIBRIO DE CORTO PLAZO | BY112: 0.45 | BZ112: 6,375.00 | CA112: 18.89 | CB112: 337.50 | CC112: 8.89 | CD112: 10.00 | CE112: 10.00 | CF112: 337.50 | CG112: 27.22 | CH112: 337.50 | CI112: 13.61 | CJ112: 337.50 | CK112: 12.05 | CL112: 1,462.50 | CM112: 20.0 | CN112: =+$BW$114*BY112 -> 281.25 | CO112: =+$BW$113*BY112 -> 9.00 | CP112: 625.00 | CQ112: 10.20 | CR112: 20.00 | CS112: =+$BW$113*BY112 -> 9.00 | CT112: 625.00
AT113: Cantidad de Equilibrio | AU113: =AU122 -> 9.0 | AW113: 0.50 | AX113: 86.78 | AY113: 14.32 | AZ113: 6.06 | BA113: 16.50 | BB113: -2.18 | BC113: -0.36 | BD113: 6.06 | BE113: 19.76 | BF113: 6.06 | BG113: 1.98 | BH113: 6.06 | BK113: 4.49 | BL113: 13.87 | BM113: 6.94 | BN113: 8.98 | BO113: 9.8 | BV113: Precio de Equilibrio | BW113: =BW108*BW114^(BW109) -> 20.0 | BY113: 0.50 | BZ113: 6,750.00 | CA113: 18.00 | CB113: 375.00 | CC113: 8.00 | CD113: 10.00 | CE113: 10.00 | CF113: 375.00 | CG113: 25.82 | CH113: 375.00 | CI113: 12.91 | CJ113: 375.00 | CM113: 20.0 | CN113: =+$BW$114*BY113 -> 312.50 | CO113: =+$BW$113*BY113 -> 10.00 | CP113: 625.00 | CQ113: 10.20 | CR113: 20.00 | CS113: =+$BW$113*BY113 -> 10.00 | CT113: 625.00
AT114: Ingreso Marginal | AU114: =(1+AU108)*AU107*(AU113^(AU108)) -> 1.4 | AW114: 0.55 | AX114: 86.67 | AY114: 12.87 | AZ114: 6.73 | BA114: 14.85 | BB114: -1.98 | BC114: 0.04 | BD114: 6.73 | BE114: 17.97 | BF114: 6.73 | BG114: 1.80 | BH114: 6.73 | BK114: 4.94 | BL114: 13.87 | BM114: 7.63 | BN114: 8.98 | BO114: 9.8 | BV114: Cantidad de Equilibrio | BW114: =(((1+BW109)*BW108)/BW106)^(1/-BW109) -> 625.0 | BY114: 0.55 | BZ114: 7,125.00 | CA114: 17.27 | CB114: 412.50 | CC114: 7.27 | CD114: 10.00 | CE114: 10.00 | CF114: 412.50 | CG114: 24.62 | CH114: 412.50 | CI114: 12.31 | CJ114: 412.50 | CM114: 20.0 | CN114: =+$BW$114*BY114 -> 343.75 | CO114: =+$BW$113*BY114 -> 11.00 | CP114: 625.00 | CQ114: 10.20 | CR114: 20.00 | CS114: =+$BW$113*BY114 -> 11.00 | CT114: 625.00
AT115: Costo Marginal | AU115: =(2*(AU104*AU122))+(AU105) -> 1.4 | AW115: 0.60 | AX115: 86.83 | AY115: 11.72 | AZ115: 7.41 | BA115: 13.50 | BB115: -1.78 | BC115: 0.44 | BD115: 7.41 | BE115: 16.49 | BF115: 7.41 | BG115: 1.65 | BH115: 7.41 | BK115: 5.39 | BL115: 13.87 | BM115: 8.32 | BN115: 8.98 | BO115: 9.8 | BV115: Ingreso Marginal | BW115: =(1+BW109)*BW108*(BW114^BW109) -> 10.0 | BY115: 0.60 | BZ115: 7,500.00 | CA115: 16.67 | CB115: 450.00 | CC115: 6.67 | CD115: 10.00 | CE115: 10.00 | CF115: 450.00 | CG115: 23.57 | CH115: 450.00 | CI115: 11.79 | CJ115: 450.00 | CM115: 20.0 | CN115: =+$BW$114*BY115 -> 375.00 | CO115: =+$BW$113*BY115 -> 12.00 | CP115: 625.00 | CQ115: 10.20 | CR115: 20.00 | CS115: =+$BW$113*BY115 -> 12.00 | CT115: 625.00
AT116: Costo Medio | AU116: =AU117/AU122 -> 9.8 | AW116: 0.65 | AX116: 87.27 | AY116: 10.80 | AZ116: 8.08 | BA116: 12.38 | BB116: -1.58 | BC116: 0.85 | BD116: 8.08 | BE116: 15.25 | BF116: 8.08 | BG116: 1.53 | BH116: 8.08 | BK116: 5.84 | BL116: 13.87 | BM116: 9.02 | BN116: 8.98 | BO116: 9.8 | BV116: Costo Marginal | BW116: =BW106 -> 10.0 | BY116: 0.65 | BZ116: 7,875.00 | CA116: 16.15 | CB116: 487.50 | CC116: 6.15 | CD116: 10.00 | CE116: 10.00 | CF116: 487.50 | CG116: 22.65 | CH116: 487.50 | CI116: 11.32 | CJ116: 487.50 | CM116: 20.0 | CN116: =+$BW$114*BY116 -> 406.25 | CO116: =+$BW$113*BY116 -> 13.00 | CP116: 625.00 | CQ116: 10.20 | CR116: 20.00 | CS116: =+$BW$113*BY116 -> 13.00 | CT116: 625.00
AT117: Costo Total | AU117: =AU104*(AU122^2)+AU105*AU122+AU106 -> 88.3 | AW117: 0.70 | AX117: 87.97 | AY117: 10.05 | AZ117: 8.75 | BA117: 11.42 | BB117: -1.37 | BC117: 1.25 | BD117: 8.75 | BE117: 14.19 | BF117: 8.75 | BG117: 1.42 | BH117: 8.75 | BK117: 6.28 | BL117: 13.87 | BM117: 9.71 | BN117: 8.98 | BO117: 9.8 | BV117: Costo Medio | BW117: =(BW106*BW114+BW107)/BW114 -> 14.8 | BY117: 0.70 | BZ117: 8,250.00 | CA117: 15.71 | CB117: 525.00 | CC117: 5.71 | CD117: 10.00 | CE117: 10.00 | CF117: 525.00 | CG117: 21.82 | CH117: 525.00 | CI117: 10.91 | CJ117: 525.00 | CM117: 20.0 | CN117: =+$BW$114*BY117 -> 437.50 | CO117: =+$BW$113*BY117 -> 14.00 | CP117: 625.00 | CQ117: 10.20 | CR117: 20.00 | CS117: =+$BW$113*BY117 -> 14.00 | CT117: 625.00
AT118: Ingreso Total | AU118: =AU113*AU112 -> 124.5 | AW118: 0.75 | AX118: 88.95 | AY118: 9.44 | AZ118: 9.43 | BA118: 10.61 | BB118: -1.17 | BC118: 1.66 | BD118: 9.43 | BE118: 13.28 | BF118: 9.43 | BG118: 1.33 | BH118: 9.43 | BK118: 6.73 | BL118: 13.87 | BM118: 10.40 | BN118: 8.98 | BO118: 9.8 | BV118: Costo Total | BW118: =(BW106*BW114+BW107) -> 9,250.0 | BY118: 0.75 | BZ118: 8,625.00 | CA118: 15.33 | CB118: 562.50 | CC118: 5.33 | CD118: 10.00 | CE118: 10.00 | CF118: 562.50 | CG118: 21.08 | CH118: 562.50 | CI118: 10.54 | CJ118: 562.50 | CM118: 20.0 | CN118: =+$BW$114*BY118 -> 468.75 | CO118: =+$BW$113*BY118 -> 15.00 | CP118: 625.00 | CQ118: 10.20 | CR118: 20.00 | CS118: =+$BW$113*BY118 -> 15.00 | CT118: 625.00
AT119: Beneficio | AU119: =AU118-AU117 -> 36.3 | AW119: 0.80 | AX119: 90.20 | AY119: 8.93 | AZ119: 10.10 | BA119: 9.90 | BB119: -0.97 | BC119: 2.06 | BD119: 10.10 | BE119: 12.48 | BF119: 10.10 | BG119: 1.25 | BH119: 10.10 | BK119: 7.18 | BL119: 13.87 | BM119: 11.10 | BN119: 8.98 | BO119: 9.8 | BV119: Ingreso Total | BW119: =BW114*BW113 -> 12,500.0 | BY119: 0.80 | BZ119: 9,000.00 | CA119: 15.00 | CB119: 600.00 | CC119: 5.00 | CD119: 10.00 | CE119: 10.00 | CF119: 600.00 | CG119: 20.41 | CH119: 600.00 | CI119: 10.21 | CJ119: 600.00 | CM119: 20.0 | CN119: =+$BW$114*BY119 -> 500.00 | CO119: =+$BW$113*BY119 -> 16.00 | CP119: 625.00 | CQ119: 10.20 | CR119: 20.00 | CS119: =+$BW$113*BY119 -> 16.00 | CT119: 625.00
AW120: 0.85 | AX120: 91.73 | AY120: 8.51 | AZ120: 10.77 | BA120: 9.28 | BB120: -0.77 | BC120: 2.46 | BD120: 10.77 | BE120: 11.77 | BF120: 10.77 | BG120: 1.18 | BH120: 10.77 | BK120: 7.63 | BL120: 13.87 | BM120: 11.79 | BN120: 8.98 | BO120: 9.8 | BV120: Beneficio | BW120: =BW119-BW118 -> 3,250.0 | BY120: 0.85 | BZ120: 9,375.00 | CA120: 14.71 | CB120: 637.50 | CC120: 4.71 | CD120: 10.00 | CE120: 10.00 | CF120: 637.50 | CG120: 19.80 | CH120: 637.50 | CI120: 9.90 | CJ120: 637.50 | CM120: 20.0 | CN120: =+$BW$114*BY120 -> 531.25 | CO120: =+$BW$113*BY120 -> 17.00 | CP120: 625.00 | CQ120: 10.20 | CR120: 20.00 | CS120: =+$BW$113*BY120 -> 17.00 | CT120: 625.00
AU121: =-2*AU104*(AU122^(1-AU108))-AU105*AU122^-AU108+(1+AU108)*AU107 -> 0.0003305138252 | AW121: 0.90 | AX121: 93.52 | AY121: 8.17 | AZ121: 11.45 | BA121: 8.74 | BB121: -0.57 | BC121: 2.87 | BD121: 11.45 | BE121: 11.15 | BF121: 11.45 | BG121: 1.11 | BH121: 11.45 | BK121: 8.08 | BL121: 13.87 | BM121: 12.48 | BN121: 8.98 | BO121: 9.8 | BV121: Elasticidad Precio | BW121: =1/BW109 -> -2.0 | BY121: 0.90 | BZ121: 9,750.00 | CA121: 14.44 | CB121: 675.00 | CC121: 4.44 | CD121: 10.00 | CE121: 10.00 | CF121: 675.00 | CG121: 19.25 | CH121: 675.00 | CI121: 9.62 | CJ121: 675.00 | CM121: 20.0 | CN121: =+$BW$114*BY121 -> 562.50 | CO121: =+$BW$113*BY121 -> 18.00 | CP121: 625.00 | CQ121: 10.20 | CR121: 20.00 | CS121: =+$BW$113*BY121 -> 18.00 | CT121: 625.00
AT122: y1 Empresa | AU122: =ComMono_maxben_Lp_2g_iso!C16 -> 9.0 | AW122: 0.95 | AX122: 95.59 | AY122: 7.89 | AZ122: 12.12 | BA122: 8.25 | BB122: -0.36 | BC122: 3.27 | BD122: 12.12 | BE122: 10.59 | BF122: 12.12 | BG122: 1.06 | BH122: 12.12 | BK122: 8.53 | BL122: 13.87 | BM122: 13.18 | BN122: 8.98 | BO122: 9.8 | BY122: 0.95 | BZ122: 10,125.00 | CA122: 14.21 | CB122: 712.50 | CC122: 4.21 | CD122: 10.00 | CE122: 10.00 | CF122: 712.50 | CG122: 18.73 | CH122: 712.50 | CI122: 9.37 | CJ122: 712.50 | CM122: 20.0 | CN122: =+$BW$114*BY122 -> 593.75 | CO122: =+$BW$113*BY122 -> 19.00 | CP122: 625.00 | CQ122: 10.20 | CR122: 20.00 | CS122: =+$BW$113*BY122 -> 19.00 | CT122: 625.00
AT123: Num. Enpresas | AU123: =ComMono_maxben_Lp_2g_iso!C26 -> 20.0 | AW123: 1.00 | AX123: 97.93 | AY123: 7.65 | AZ123: 12.79 | BA123: 7.82 | BB123: -0.16 | BC123: 3.68 | BD123: 12.79 | BE123: 10.09 | BF123: 12.79 | BG123: 1.01 | BH123: 12.79 | BK123: 8.98 | BL123: 13.87 | BM123: 13.87 | BN123: 8.98 | BO123: 9.8 | BV123: y1 equilibrio | BW123: =BW114 -> 625.0 | BY123: 1.00 | BZ123: 10,500.00 | CA123: 14.00 | CB123: 750.00 | CC123: 4.00 | CD123: 10.00 | CE123: 10.00 | CF123: 750.00 | CG123: 18.26 | CH123: 750.00 | CI123: 9.13 | CJ123: 750.00 | CM123: 20.0 | CN123: =+$BW$114*BY123 -> 625.00 | CO123: =+$BW$113*BY123 -> 20.00 | CP123: 625.00 | CQ123: 10.20 | CR123: 20.00 | CS123: =+$BW$113*BY123 -> 20.00 | CT123: 625.00
AT124: Y1 Industria | AU124: =((AU107/AU112)^(1/-AU108))*AU123 -> 179.6 | BV124: y2 equilibrio
BV125: y equilibrio
BA126: x | BB126: p | BC126: x*k | BH126: x | BI126: p | BJ126: x*k | BK126: XILINE | BQ126: X2LINE | CC126: x | CD126: p | CE126: x*k | CJ126: x | CK126: p | CL126: x*k | CM126: XILINE | CS126: X2LINE
AT127: PARÁMETROS MODIFICADOS | AY127: 1 | AZ127: 0 | BC127: =BA127*$AU$124 -> 0 | BF127: 1 | BG127: 0 | BH127: =$AU$131*BG127 ->  | BK127: =$AU$124*BG127 -> 0 | BL127: =$AU$124 -> 179.6 | BM127: =$AU$112*BG127 -> 0 | BN127: =$AU$112 -> 13.9 | BO127: =BG127*$AU$136 ->  | BP127: =$AU$136 ->  | BQ127: =IF($AU$150=0,0,$AU$148) -> 0.0 | BR127: =IF($AU$150=0,0,BG127*$AU$136) -> 0.0 | BS127: =IF($AU$150=0,0,$AU$148*AZ127) -> 0.0 | BT127: =IF($AU$150=0,0,$AU$136) -> 0.0 | BV127: 0 | BW127: =ComMono_maxben_Lp_1g_iso!C26 -> 20.0 | BX127: 3.0 | CA127: 1 | CB127: 0 | CE127: =CC127*$AU$124 -> 0 | CH127: 1 | CI127: 0 | CM127: =$BW$128*CI127 -> 0 | CN127: =+$BW$128 -> 12500.0 | CO127: =$BW$113*CI127 -> 0 | CP127: =$BW$113 -> 20.0 | CQ127: =CI127*$BW$140 -> 0 | CR127: =+$BW$140 -> 10.2 | CS127: =IF($BW$153=0,0,$BW$152) -> 48058.4 | CT127: =IF($BW$153=0,0,$BW$140*CI127) -> 0.0 | CU127: =IF($BW$153=0,0,$BW$152*CB127) -> 0 | CV127: =IF($BW$153=0,0,$BW$140) -> 10.2
AT128: b | AU128: =AU104 -> 0.30 | AY128: 0.9 | AZ128: 0.1 | BA128: =$AU$107*AZ128 -> 10 | BB128: =$AU$107*BA128^($AU$108) -> 12.58925412 | BC128: =BA128*$AU$124 -> 1795.695217 | BF128: 0.9 | BG128: 0.1 | BH128: =$AU$131*BG128 ->  | BI128: =$AU$131*BA128^($AU$132) ->  | BJ128: =BH128*$AU$147 ->  | BK128: =$AU$124*BG128 -> 17.95695217 | BL128: =$AU$124 -> 179.6 | BM128: =$AU$112*BG128 -> 1.387131496 | BN128: =$AU$112 -> 13.9 | BO128: =BG128*$AU$136 ->  | BP128: =$AU$136 ->  | BQ128: =IF($AU$150=0,0,$AU$148) -> 0.0 | BR128: =IF($AU$150=0,0,BG128*$AU$136) -> 0.0 | BS128: =IF($AU$150=0,0,$AU$148*AZ128) -> 0.0 | BT128: =IF($AU$150=0,0,$AU$136) -> 0.0 | BV128: Y1 Industria | BW128: =BW114*BW127 -> 12500.0 | CA128: 0.9 | CB128: 0.1 | CC128: =$BW$108*CB128 -> 50 | CD128: =$BW$108*CC128^($BW$109) -> 70.71067812 | CE128: =CC128*$BW$128 -> 625000 | CH128: 0.9 | CI128: 0.1 | CJ128: =$BW$135*CI128 -> 2 | CK128: =$BW$135*CJ128^($BW$109) -> 14.14213562 | CL128: =CJ128*$BW$152 -> 96116.87812 | CM128: =$BW$128*CI128 -> 1250 | CN128: =+$BW$128 -> 12500.0 | CO128: =$BW$113*CI128 -> 2 | CP128: =$BW$113 -> 20.0 | CQ128: =CI128*$BW$140 -> 1.02 | CR128: =+$BW$140 -> 10.2 | CS128: =IF($BW$153=0,0,$BW$152) -> 48058.4 | CT128: =IF($BW$153=0,0,$BW$140*CI128) -> 1.0 | CU128: =IF($BW$153=0,0,$BW$152*CB128) -> 4805.843906 | CV128: =IF($BW$153=0,0,$BW$140) -> 10.2
AT129: c | AU129: =AU105 -> -4.00 | AY129: 0.8 | AZ129: 0.2 | BA129: 20 | BB129: =$AU$107*BA129^($AU$108) -> 6.746414238 | BC129: =BA129*$AU$124 -> 3591.390433 | BF129: 0.8 | BG129: 0.2 | BI129: =$AU$131*BA129^($AU$132) ->  | BK129: 35.91390433 | BL129: 179.6 | BM129: 2.774262992 | BN129: 13.9 | BQ129: 0.0 | BR129: 0.0 | BS129: 0.0 | BT129: 0.0 | CA129: 0.8 | CB129: 0.2 | CC129: =$BW$108*CB129 -> 100 | CD129: =$BW$108*CC129^($BW$109) -> 50 | CE129: =CC129*$BW$128 -> 1250000 | CH129: 0.8 | CI129: 0.2 | CJ129: =$BW$135*CI129 -> 4 | CK129: =$BW$135*CJ129^($BW$109) -> 10 | CL129: =CJ129*$BW$152 -> 192233.7562 | CM129: 2500 | CN129: 12500.0 | CO129: 4 | CP129: 20.0 | CQ129: 2.04 | CR129: 10.2 | CS129: 48058.4 | CT129: 2.0 | CU129: 9611.687812 | CV129: 10.2
AT130: d | AU130: =AU106 -> 100.00 | AY130: 0.7 | AZ130: 0.3 | BA130: 30 | BB130: 4.683719422 | BC130: 5387.08565 | BF130: 0.7 | BG130: 0.3 | BK130: 53.8708565 | BL130: 179.6 | BM130: 4.161394489 | BN130: 13.9 | BQ130: 0.0 | BR130: 0.0 | BS130: 0.0 | BT130: 0.0 | BV130: PARÁMETROS MODIFICADOS | CA130: 0.7 | CB130: 0.3 | CC130: 150 | CD130: 40.82482905 | CE130: 1875000 | CH130: 0.7 | CI130: 0.3 | CJ130: 6 | CK130: 8.164965809 | CL130: 288350.6344 | CM130: 3750 | CN130: 12500.0 | CO130: 6 | CP130: 20.0 | CQ130: 3.06 | CR130: 10.2 | CS130: 48058.4 | CT130: 3.1 | CU130: 14417.53172 | CV130: 10.2
AT131: b0 | AU131: =AU136*AU137^(-AU132) ->  | AY131: 0.6 | AZ131: 0.4 | BA131: 40 | BB131: =$AU$107*BA131^($AU$108) -> 3.615313874 | BC131: =BA131*$AU$124 -> 7182.780866 | BF131: 0.6 | BG131: 0.4 | BK131: 71.82780866 | BL131: 179.6 | BM131: 5.548525985 | BN131: 13.9 | BQ131: 0.0 | BR131: 0.0 | BS131: 0.0 | BT131: 0.0 | CA131: 0.6 | CB131: 0.4 | CC131: 200 | CD131: 35.35533906 | CE131: 2500000 | CH131: 0.6 | CI131: 0.4 | CJ131: 8 | CK131: 7.071067812 | CL131: 384467.5125 | CM131: 5000 | CN131: 12500.0 | CO131: 8 | CP131: 20.0 | CQ131: 4.08 | CR131: 10.2 | CS131: 48058.4 | CT131: 4.1 | CU131: 19223.37562 | CV131: 10.2
AT132: b1 | AU132: =AU108 -> -0.90 | AY132: 0.5 | AZ132: 0.5 | BA132: 50 | BB132: 2.957515273 | BC132: 8978.476083 | BF132: 0.5 | BG132: 0.5 | BK132: 89.78476083 | BL132: 179.6 | BM132: 6.935657481 | BN132: 13.9 | BQ132: 0.0 | BR132: 0.0 | BS132: 0.0 | BT132: 0.0 | CA132: 0.5 | CB132: 0.5 | CC132: 250 | CD132: 31.6227766 | CE132: 3125000 | CH132: 0.5 | CI132: 0.5 | CJ132: 10 | CK132: 6.32455532 | CL132: 480584.3906 | CM132: 6250 | CN132: 12500.0 | CO132: 10 | CP132: 20.0 | CQ132: 5.1 | CR132: 10.2 | CS132: 48058.4 | CT132: 5.1 | CU132: 24029.21953 | CV132: 10.2
AT133: b0/b1 | AU133: =((1/AU108)*(-AU137)+AU136) ->  | AY133: 0.4 | AZ133: 0.6 | BA133: 60 | BB133: 2.509943091 | BC133: 10774.1713 | BF133: 0.4 | BG133: 0.6 | BK133: 107.741713 | BL133: 179.6 | BM133: 8.322788977 | BN133: 13.9 | BQ133: 0.0 | BR133: 0.0 | BS133: 0.0 | BT133: 0.0 | BV133: c | BW133: =BW106 -> 10.00 | CA133: 0.4 | CB133: 0.6 | CC133: 300 | CD133: 28.86751346 | CE133: 3750000 | CH133: 0.4 | CI133: 0.6 | CJ133: 12 | CK133: 5.773502692 | CL133: 576701.2687 | CM133: 7500 | CN133: 12500.0 | CO133: 12 | CP133: 20.0 | CQ133: 6.12 | CR133: 10.2 | CS133: 48058.4 | CT133: 6.1 | CU133: 28835.06344 | CV133: 10.2
AY134: 0.3 | AZ134: 0.7 | BA134: 70 | BB134: 2.184800387 | BC134: 12569.86652 | BF134: 0.3 | BG134: 0.7 | BK134: 125.6986652 | BL134: 179.6 | BM134: 9.709920473 | BN134: 13.9 | BQ134: 0.0 | BR134: 0.0 | BS134: 0.0 | BT134: 0.0 | BV134: d | BW134: 500.00 | CA134: 0.3 | CB134: 0.7 | CC134: 350 | CD134: 26.72612419 | CE134: 4375000 | CH134: 0.3 | CI134: 0.7 | CJ134: 14 | CK134: 5.345224838 | CL134: 672818.1469 | CM134: 8750 | CN134: 12500.0 | CO134: 14 | CP134: 20.0 | CQ134: 7.14 | CR134: 10.2 | CS134: 48058.4 | CT134: 7.1 | CU134: 33640.90734 | CV134: 10.2
AT135: EQUILIBRIO DE LARGO PLAZO | AU135: =AU128*AU137^(1-AU132)-AU130*AU137^(-AU132-1)-AU132*AU131 ->  | AY135: 0.2 | AZ135: 0.8 | BA135: 80 | BB135: 1.937398734 | BC135: 14365.56173 | BF135: 0.2 | BG135: 0.8 | BK135: 143.6556173 | BL135: 179.6 | BM135: 11.09705197 | BN135: 13.9 | BQ135: 0.0 | BR135: 0.0 | BS135: 0.0 | BT135: 0.0 | BV135: b0 | BW135: =BW133/(1-BW134*((BW134/-BW136)^((-BW136-1)/(1+BW136)))) -> 20.00 | BX135: =((BW133*((BW134/-BW136)^(-BW136/(1+BW136))))/(1-(BW134*((BW134/-BW136)^((-BW136-1)/(1+BW136))))))^(1+BW136) -> 141.4213562 | CA135: 0.2 | CB135: 0.8 | CC135: 400 | CD135: 25 | CE135: 5000000 | CH135: 0.2 | CI135: 0.8 | CJ135: 16 | CK135: 5 | CL135: 768935.025 | CM135: 10000 | CN135: 12500.0 | CO135: 16 | CP135: 20.0 | CQ135: 8.16 | CR135: 10.2 | CS135: 48058.4 | CT135: 8.2 | CU135: 38446.75125 | CV135: 10.2
AT136: Precio de Equilibrio | AU136: =AU128*AU137+AU129+AU130/AU137 ->  | AY136: 0.1 | AZ136: 0.9 | BA136: 90 | BB136: 1.742535929 | BC136: 16161.25695 | BF136: 0.1 | BG136: 0.9 | BK136: 161.6125695 | BL136: 179.6 | BM136: 12.48418347 | BN136: 13.9 | BQ136: 0.0 | BR136: 0.0 | BS136: 0.0 | BT136: 0.0 | BV136: b1 | BW136: =BW109 -> -0.50 | CA136: 0.1 | CB136: 0.9 | CC136: 450 | CD136: 23.57022604 | CE136: 5625000 | CH136: 0.1 | CI136: 0.9 | CJ136: 18 | CK136: 4.714045208 | CL136: 865051.9031 | CM136: 11250 | CN136: 12500.0 | CO136: 18 | CP136: 20.0 | CQ136: 9.18 | CR136: 10.2 | CS136: 48058.4 | CT136: 9.2 | CU136: 43252.59516 | CV136: 10.2
AT137: Cantidad de Equilibrio | AU137: =ComMono_maxben_Lp_2g_iso!F16 -> 0.0 | AY137: 0 | AZ137: 1 | BA137: 100 | BB137: 1.584893192 | BC137: 17956.95217 | BF137: 0 | BG137: 1 | BK137: 179.5695217 | BL137: 179.6 | BM137: 13.87131496 | BN137: 13.9 | BQ137: 0.0 | BR137: 0.0 | BS137: 0.0 | BT137: 0.0 | CA137: 0 | CB137: 1 | CC137: 500 | CD137: 22.36067977 | CE137: 6250000 | CH137: 0 | CI137: 1 | CJ137: 20 | CK137: 4.472135955 | CL137: 961168.7812 | CM137: 12500 | CN137: 12500.0 | CO137: 20 | CP137: 20.0 | CQ137: 10.2 | CR137: 10.2 | CS137: 48058.4 | CT137: 10.2 | CU137: 48058.43906 | CV137: 10.2
AT138: Ingreso Marginal | AU138: =(1+AU132)*AU131*(AU137^(AU132)) -> 
AT139: Costo Marginal | AU139: =(2*(AU128*AU146))+(AU129) -> -4.0 | BV139: EQUILIBRIO DE LARGO PLAZO
AT140: Costo Medio | AU140: =AU141/AU146 ->  | BV140: Precio de Equilibrio | BW140: =BW133+BW134/BW141 -> 10.20 | BY140: =BW133/(1-BW134*((BW134/-BW136)^((-BW136-1)/(1+BW136)))) -> 20.00
AT141: Costo Total | AU141: =AU128*(AU146^2)+AU129*AU146+AU130 -> 100.0 | BV141: Cantidad de Equilibrio | BW141: =((BW134/(BW135*BW136*-1)))^(1/(1+BW136)) -> 2,500.0
AT142: Ingreso Total | AU142: =AU136*AU137 ->  | BV142: Ingreso Marginal | BW142: =(1+BW136)*BW135*(BW141^BW136) -> 0.2
AT143: Beneficio | AU143: =AU142-AU141 ->  | BV143: Costo Marginal | BW143: =BW133 -> 10.0
AT144: Elasticidad Precio | AU144: =1/AU132 -> -1.1 | BV144: Costo Medio | BW144: =(BW133*BW141+BW134)/BW141 -> 10.2
BV145: Costo Total | BW145: =(BW133*BW141+BW134) -> 25,500.0
AT146: y1 Empresa | AU146: =AU137 -> 0.0 | BV146: Ingreso Total | BW146: =BW140*BW141 -> 25,500.0
AT147: Num. Enpresas | AU147: =AU148/AU146 ->  | BV147: Beneficio | BW147: =BW146-BW145 -> 0.0
AT148: Y1 Industria | AU148: =((AU107/AU136)^(1/-AU108))*AU123 ->  | BV148: Elasticidad Precio | BW148: =1/BW136 -> -2.0
AT150: Resuelve | AU150: =ComMono_maxben_Lp_2g_iso!K7 -> 0 | BV150: y1 Empresa | BW150: =BW141 -> 2500.0
BV151: Num. Enpresas | BW151: =BW152/BW150 -> 19.2
AT152: Precio de Equilibrio | AU152: =IF(AU150=1,AU136,-2) -> -2.0 | BV152: Y1 Industria | BW152: =((BW108/BW140)^(1/-BW109))*BW127 -> 48058.4
AT153: Cantidad de Equilibrio | AU153: =IF(AU150=1,AU137,-2) -> -2.0 | BS153: 0 | BV153: Resuelve | BW153: 1
BS156: 0
BV158: Precio de Equilibrio | BW158: =IF(BW153=1,BW140,0) -> 10.2
BV159: Cantidad de Equilibrio | BW159: =IF(BW153=1,BW141,0) -> 2,500.0

Sheet ComMono_maxben_Lp_2g (hidden)
A1: COMPETENCIA MONOPOLISTICA
A3: Equilibrio a largo plazo
B5: Parámetros función costos y demanda
B6: a (y2) | C6: 0.10000
B7: b (y) | C7: -4.00 | E7: Parámetros función demanda de la empresa a largo plazo
B8: c | C8: 200.0
B9: b0 | C9: 40.0 | E9: b0´ | F9: =F11*C10*-1 -> 17.9
B10: b1 | C10: -0.5 | E10: b1 | F10: =C10 -> -0.5
B11: b0/b1 | C11: =C9/C10*-1 -> 80.0 | E11: b0/b1 | F11: =Oculto_ComMono!AU31 -> 35.8
B12: 1/b1 | C12: =1/C10 -> -2.0 | E12: 1/b1 | F12: =Oculto_ComMono!AU32 -> -2.0
B13: Inserte los datos correspondientes
B14: Equilibrio de CORTO PLAZO | E14: Equilibrio de LARGO PLAZO
B15: Precio de equilibrio | C15: =Oculto_ComMono!AU12 -> 21.7 | E15: Precio de equilibrio | F15: =Oculto_ComMono!AU36 -> 8.8
B16: Cantidad de equilibrio | C16: =Oculto_ComMono!AU13 -> 36.7 | E16: Cantidad de equilibrio | F16: =Oculto_ComMono!AU37 -> 18.3
B17: Ingreso marginal | C17: =Oculto_ComMono!AU14 -> 3.3 | E17: Ingreso marginal | F17: =Oculto_ComMono!AU38 -> -0.3
B18: Costo marginal | C18: =Oculto_ComMono!AU15 -> 3.3 | E18: Costo marginal | F18: =Oculto_ComMono!AU39 -> -0.3
B19: Costo medio | C19: =Oculto_ComMono!AU16 -> 5.1 | E19: Costo medio | F19: =Oculto_ComMono!AU40 -> 8.8
B20: Costo total | C20: =Oculto_ComMono!AU17 -> 187.8 | E20: Costo total | F20: =Oculto_ComMono!AU41 -> 160.3
B21: Ingreso total | C21: =Oculto_ComMono!AU18 -> 794.4 | E21: Ingreso total | F21: =Oculto_ComMono!AU42 -> 160.3
B22: Beneficio | C22: =Oculto_ComMono!AU19 -> 606.7 | E22: Beneficio | F22: =Oculto_ComMono!AU43 -> 0.0
B23: Elasticidad precio | C23: =Oculto_ComMono!AU20 -> -1.2 | E23: Elasticidad precio | F23: =Oculto_ComMono!AU44 -> -1.0
B25: Producción empresa | C25: =+Oculto_ComMono!AU22 -> 36.7 | E25: Producción empresa | F25: =Oculto_ComMono!AU46 -> 18.3
B26: Número de empresas | C26: 20.0 | E26: Número de empresas | F26: =Oculto_ComMono!AU47 -> 68.4
B27: Producción industria | C27: =+Oculto_ComMono!AU24 -> 733.3 | E27: Producción industria | F27: =Oculto_ComMono!AU48 -> 1,248.8
B36: Títulos
B37: Resultados
B38: Insertar datos
B39: Valores de equilibrio

Sheet ComMono_maxben_Lp_2g_iso (hidden)
A1: COMPETENCIA MONOPOLISTICA
A3: Equilibrio a largo plazo con función de demanda isoelástica
B5: Parámetros función costos y demanda
B6: b (y2) | C6: 0.30000
B7: c (y) | C7: -4.00 | E7: Parámetros función demanda de la empresa a largo plazo | J7: =-2*C6*(C16^(1-C10))-C7*C16^-C10+(1+C10)*C9 -> 0.0003305138252 | K7: 0
B8: d | C8: 100.0 | J8: =-2*C6*(F16^(1-C10))-C7*F16^-C10+(1+C10)*F9 -> 
B9: b0 | C9: 100.0 | E9: b0´ | F9: =IF(K7=1,Oculto_ComMono!AU131,"") -> 
B10: b1 | C10: -0.9 | E10: b1 | F10: =IF(K7=1,Oculto_ComMono!AU132,"") -> 
B11: Inserte los datos correspondientes
B14: Equilibrio de CORTO PLAZO | E14: Equilibrio de LARGO PLAZO
B15: Precio de equilibrio | C15: =Oculto_ComMono!AU112 -> 13.9 | E15: Precio de equilibrio | F15: =IF(K7=1,Oculto_ComMono!AU136,"") -> 
B16: Cantidad de equilibrio | C16: 9.0 | E16: Cantidad de equilibrio
B17: Ingreso marginal | C17: =Oculto_ComMono!AU114 -> 1.4 | E17: Ingreso marginal | F17: =IF(K7=1,Oculto_ComMono!AU138,"") -> 
B18: Costo marginal | C18: =Oculto_ComMono!AU115 -> 1.4 | E18: Costo marginal | F18: =IF(K7=1,Oculto_ComMono!AU139,"") -> 
B19: Costo medio | C19: =Oculto_ComMono!AU116 -> 9.8 | E19: Costo medio | F19: =IF(K7=1,Oculto_ComMono!AU140,"") -> 
B20: Costo total | C20: =Oculto_ComMono!AU117 -> 88.3 | E20: Costo total | F20: =IF(K7=1,Oculto_ComMono!AU141,"") -> 
B21: Ingreso total | C21: =Oculto_ComMono!AU118 -> 124.5 | E21: Ingreso total | F21: =IF(K7=1,Oculto_ComMono!AU142,"") -> 
B22: Beneficio | C22: =Oculto_ComMono!AU119 -> 36.3 | E22: Beneficio | F22: =IF(K7=1,Oculto_ComMono!AU143,"") -> 
B23: Elasticidad precio | C23: =1/C10 -> -1.1 | E23: Elasticidad precio | F23: =IF(K7=1,Oculto_ComMono!AU144,"") -> 
B25: Producción empresa | C25: =+Oculto_ComMono!AU22 -> 36.7 | E25: Producción empresa | F25: =IF(K7=1,Oculto_ComMono!AU146,"") -> 
B26: Número de empresas | C26: 20.0 | E26: Número de empresas | F26: =IF(K7=1,Oculto_ComMono!AU147,"") -> 
B27: Producción industria | C27: =+Oculto_ComMono!AU24 -> 733.3 | E27: Producción industria | F27: =IF(K7=1,Oculto_ComMono!AU148,"") -> 
B36: Títulos
B37: Resultados
B38: Insertar datos
B39: Valores de equilibrio

Sheet ComMono_maxben_Lp_1g_iso (hidden)
A1: COMPETENCIA MONOPOLISTICA
A3: Equilibrio a largo plazo con función de demanda isoelástica
B6: Parámetros función costos y demanda
B7: c (y) | C7: 10.00 | E7: Parámetros función demanda de la empresa a largo plazo | K7: 1
B8: d | C8: 3,000.0
B9: b0 | C9: 500.0 | E9: b0´ | F9: =IF(K7=1,Oculto_ComMono!BW135,"") -> 20.0
B10: b1 | C10: -0.5 | E10: b1 | F10: =IF(K7=1,Oculto_ComMono!BW136,"") -> -0.5
B13: Inserte los datos correspondientes
B14: Equilibrio de CORTO PLAZO | E14: Equilibrio de LARGO PLAZO
B15: Precio de equilibrio | C15: =Oculto_ComMono!BW113 -> 20.0 | E15: Precio de equilibrio | F15: =IF(K7=1,Oculto_ComMono!BW140,"") -> 10.2
B16: Cantidad de equilibrio | C16: =Oculto_ComMono!BW114 -> 625.0 | E16: Cantidad de equilibrio | F16: =IF(K7=1,Oculto_ComMono!BW141,"") -> 2,500.0
B17: Ingreso marginal | C17: =Oculto_ComMono!BW115 -> 10.0 | E17: Ingreso marginal | F17: =IF(K7=1,Oculto_ComMono!BW142,"") -> 0.2
B18: Costo marginal | C18: =Oculto_ComMono!BW116 -> 10.0 | E18: Costo marginal | F18: =IF(K7=1,Oculto_ComMono!BW143,"") -> 10.0
B19: Costo medio | C19: =Oculto_ComMono!BW117 -> 14.8 | E19: Costo medio | F19: =IF(K7=1,Oculto_ComMono!BW144,"") -> 10.2
B20: Costo total | C20: =Oculto_ComMono!BW118 -> 9,250.0 | E20: Costo total | F20: =IF(K7=1,Oculto_ComMono!BW145,"") -> 25,500.0
B21: Ingreso total | C21: =Oculto_ComMono!BW119 -> 12,500.0 | E21: Ingreso total | F21: =IF(K7=1,Oculto_ComMono!BW146,"") -> 25,500.0
B22: Beneficio | C22: =Oculto_ComMono!BW120 -> 3,250.0 | E22: Beneficio | F22: =IF(K7=1,Oculto_ComMono!BW147,"") -> 0.0
B23: Elasticidad precio | C23: =Oculto_ComMono!BW121 -> -2.0 | E23: Elasticidad precio | F23: =IF(K7=1,Oculto_ComMono!BW148,"") -> -2.0
B25: Producción empresa | C25: =Oculto_ComMono!BW123 -> 625.0 | E25: Producción empresa | F25: =Oculto_ComMono!BW151 -> 19.2
B26: Número de empresas | C26: 20.0 | E26: Número de empresas | F26: =Oculto_ComMono!BW151 -> 19.2
B27: Producción industria | C27: =Oculto_ComMono!BW128 -> 12,500.0 | E27: Producción industria | F27: =Oculto_ComMono!BW152 -> 48,058.4
B36: Títulos
B37: Resultados
B38: Insertar datos
B39: Valores de equilibrio
